Workbook

Sheet -- (hidden)
A1: Translations for Sheets
A2: EN | B2: SL | C2: IT | D2: DE
A3: 0 | B3: 1 | C3: 2 | D3: 3
A4: Test-No: | B4: Št. preizkusa: | C4: N. prova: | D4: Prüfungs-Nr:
A5: Attachement: | B5: Priloga: | C5: Allegato: | D5: Anlage:
A6: Ok | B6: izpolnjeno | C6: soddisfatto | D6: erfüllt
A7: NOT Ok | B7: ni izpolnjeno | C7: non soddisfatto | D7: nicht erfüllt
A8: to: | B8: do: | C8: a: | D8: zu:
A9: Plate load test DIN18134- | B9: Preskus z obremenilno ploščo DIN 18134- | C9: Prova di carico su piastra DIN 18134- | D9: Plattendruckversuch DIN 18134-
A10: Device: PlateLoad Test AX01, Manufacturer: Anix GmbH Equipment: LVDT 15mm, electronic force sensor 100 kN | B10: Preizkusna naprava: ploščni obremenilnik AX01, proizvajalec: Anix GmbH Oprema: induktivni merilnik pomika 15 mm, elektronski merilnik sile 100 kN | C10: Dispositivo: prova di carico su piastra AX01, produttore: Anix GmbH Attrezzatura: LVDT 15 mm, sensore elettronico di forza 100 kN | D10: Prüfgerät: Plattendruckgerät AX01, Hersteller: Anix GmbH Ausrüstung: induktiver Wegaufnehmer 15 mm, elektronischer Kraftaufnehmer 100 kN
A11: Project: | B11: Projekt: | C11: Progetto: | D11: Bauvorhaben:
A12: Date (Start): | B12: Datum (začetek): | C12: Data (inizio): | D12: Datum (Beginn):
A13: Date (End): | B13: Datum (konec): | C13: Data (fine): | D13: Datum (Ende):
A14: Equipment number: | B14: Številka naprave: | C14: Numero apparecchio: | D14: Gerätenummer:
A15: Client: | B15: Naročnik: | C15: Committente: | D15: Auftraggeber:
A16: Test no. on card: | B16: Št. preizkusa na kartici: | C16: N. prova sulla scheda: | D16: Versuch-Nr auf Karte:
A17: Card no: | B17: Št. kartice: | C17: N. scheda: | D17: Kartennummer:
A18: Weather: | B18: Vreme: | C18: Meteo: | D18: Witterung:
A19: Calibration Date: | B19: Datum umerjanja: | C19: Data di calibrazione: | D19: Kalibrierdatum:
A20: Previous day: | B20: Prejšnji dan: | C20: Giorno precedente: | D20: Vortag:
A21: Measuring point: | B21: Merilno mesto: | C21: Punto di misura: | D21: Messstelle:
A22: Plate Ø [mm]: | B22: Plošča Ø [mm]: | C22: Piastra Ø [mm]: | D22: Platten-Ø [mm]:
A23: Test depth: | B23: Globina preizkusa: | C23: Profondità di prova: | D23: Prüftiefe:
A24: Leverage ratio 1 to: | B24: Vzvodno razmerje 1 proti: | C24: Rapporto di leva 1 a: | D24: Hebelverhältnis 1 zu:
A25: Test layer: | B25: Preizkusna plast: | C25: Strato di prova: | D25: Prüfschicht:
A26: Polynomials | B26: Polinomi | C26: Polinomi | D26: Polynome
A27: First load | B27: Prva obremenitev | C27: Primo carico | D27: Erstbel.
A28: Second load | B28: Druga obremenitev | C28: Secondo carico | D28: Zweitbel.
A29: Third load | B29: Tretja obremenitev | C29: Terzo carico | D29: Drittbel.
A30: Remarks: | B30: Opombe: | C30: Note: | D30: Bemerkungen:
A31: a1: | B31: a1: | C31: a1: | D31: a1:
A32: a2: | B32: a2: | C32: a2: | D32: a2:
A33: First load cycle | B33: Prvi obremenitveni cikel | C33: Primo ciclo di carico | D33: Erstbelastung
A34: Unloading | B34: Razbremenitev | C34: Scarico | D34: Entlastung
A35: Second load cycle | B35: Drugi obremenitveni cikel | C35: Secondo ciclo di carico | D35: Zweitbelastung
A36: 2nd Unloading | B36: 2. razbremenitev | C36: 2° scarico | D36: 2. Entlastung
A37: Third load cycle | B37: Tretji obremenitveni cikel | C37: Terzo ciclo di carico | D37: Drittbelastung
A38: load level | B38: Stopnja obremenitve | C38: Livello di carico | D38: Last-stufe
A39: normal stress | B39: Normalna napetost | C39: Tensione normale | D39: Normal-spannung
A40: settlement | B40: Posedek | C40: Cedimento | D40: Setzung
A41: No. | B41: Št. | C41: N. | D41: Nr.
A42: MN/m2 | B42: MN/m2 | C42: MN/m2 | D42: MN/m2
A43: mm | B43: mm | C43: mm | D43: mm
A44: max: | B44: maks: | C44: max: | D44: max:
A45: Longitude: | B45: Zemljepisna dolžina: | C45: Longitudine: | D45: Länge:
A46: Latitude: | B46: Zemljepisna širina: | C46: Latitudine: | D46: Breite:
A47: UTM: | B47: UTM: | C47: UTM: | D47: UTM:
A48: Results: | B48: Rezultati: | C48: Risultati: | D48: Resultate:
A49: The requirements are NOT met. | B49: Zahteve NISO izpolnjene. | C49: I requisiti NON sono soddisfatti. | D49: Die Anforderungen werden NICHT erfüllt.
A50: The requirements are met. | B50: Zahteve so izpolnjene. | C50: I requisiti sono soddisfatti. | D50: Die Anforderungen werden erfüllt.
A51: Ev1 [MN/m²] | B51: Ev1 [MN/m²] | C51: Ev1 [MN/m²] | D51: Ev1 [MN/m²]
A52: Ev2 [MN/m²] | B52: Ev2 [MN/m²] | C52: Ev2 [MN/m²] | D52: Ev2 [MN/m²]
A53: Ev2/Ev0 | B53: Ev2/Ev1 | C53: Ev2/Ev1 | D53: Ev2/Ev1
A54: Ev3 [MN/m²] | B54: Ev3 [MN/m²] | C54: Ev3 [MN/m²] | D54: Ev3 [MN/m²]
A55: Ev3/Ev0 | B55: Ev3/Ev1 | C55: Ev3/Ev1 | D55: Ev3/Ev1
A56: Nominal: | B56: Zahtevano: | C56: Richiesto: | D56: Soll:
A57: Date: | B57: Datum: | C57: Data: | D57: Datum:
A58: Operator: | B58: Izvajalec: | C58: Operatore: | D58: Bearbeiter:
A59: Stamp/Signature: | B59: Žig/podpis: | C59: Timbro/firma: | D59: Stempel/Unterschrift:
B60: Razbremenitev, graf | C60: Scarico, grafico | D60: Entlastung, graf
B61: 2. razbremenitev, graf | C61: 2° scarico, grafico | D61: 2.Entlastung, graf
A62: additionals | B62: dodatno | C62: ulteriori | D62: weiteres
A63: Read card | B63: Branje kartice | C63: Leggi scheda | D63: Karte lesen
A64: GPS | B64: GPS | C64: GPS | D64: GPS
A65: UTM | B65: UTM | C65: UTM | D65: UTM
A66: Translate | B66: Prevedi | C66: Traduci | D66: Translate
A67: settlement [mm] | B67: Posedek [mm] | C67: Cedimento [mm] | D67: Setzung [mm]
A68: normal stress [MN/m²] | B68: Normalna napetost [MN/m²] | C68: Tensione normale [MN/m²] | D68: Normalspannung [MN/m²]
A69: 31 U | B69: 32 U | C69: 32 U | D69: 32 U
A70: Google | B70: Google | C70: Google | D70: Google
A71: Google teren | B71: Google teren | C71: Google Terrain | D71: Google Terrain
A72: Google satelit | B72: Google satelit | C72: Google Sat | D72: Google Sat
A73: OSM Anix | B73: OSM Anix | C73: OSM Anix | D73: OSM Anix
A74: Yandex | B74: Yandex | C74: Yandex | D74: Yandex
A75: Yandex satelit | B75: Yandex satelit | C75: Yandex Sat | D75: Yandex Sat
A76: Wikimedia | B76: Wikimedia | C76: Wikimedia | D76: Wikimedia
A77: Delete | B77: Izbriši | C77: Elimina | D77: Löschen
A78: Test report: | B78: Poročilo o preizkusu: | C78: Rapporto di prova: | D78: Prüfbericht:
A79: 1724_A18 | B79: 1724_A19 | C79: 1724_A19 | D79: 1724_A19
A80: Plate load test Ev | B80: Preskus z obremenilno ploščo Ev | C80: Prova di carico su piastra Ev | D80: Plattendruckversuch EV
A81: according to DIN18134, test equipment: Anix Ax01a | B81: v skladu z DIN 18134, merjeno s preizkusno napravo Anix AX01a | C81: secondo DIN 18134, misurato con apparecchio di prova Anix AX01a | D81: nach DIN 18134, gemessen mit Prüfgerät Anix AX01a
A82: Anix GmbH | B82: Anix GmbH | C82: Anix GmbH | D82: Anix GmbH
A83: Commissioned by: | B83: Naročil: | C83: Incarico conferito da: | D83: Auftrag erteilt durch:
A84: Object: | B84: Objekt: | C84: Oggetto: | D84: Objekt:
A85: Remarks: | B85: Opombe: | C85: Note: | D85: Anmerkungen:
A86: Contract from: | B86: Naročilo z dne: | C86: Ordine del: | D86: Auftrag vom:
A87: Operator: | B87: Izvajalec: | C87: Operatore: | D87: Prüfer:
A88: Summary of test results | B88: Povzetek rezultatov preizkusa | C88: Riepilogo dei risultati di prova | D88: Zusammenstellung der Prüfergebnisse
A89: Soll (EV2) [MPa]: | B89: Zahtevano (EV2) [MPa]: | C89: Richiesto (EV2) [MPa]: | D89: Soll (EV2) [MPa]:
A90: Soll (EV2/EV1) [MPa]: | B90: Zahtevano (EV2/EV1) [MPa]: | C90: Richiesto (EV2/EV1) [MPa]: | D90: Soll (EV2/EV1) [MPa]:
A91: Test point | B91: Preizkusna točka | C91: Punto di prova | D91: Prüfstelle
A92: EV | B92: EV | C92: EV | D92: EV
A93: geographical position (WGS 84, EPSG:3857) | B93: geografski položaj (WGS 84, EPSG:3857) | C93: posizione geografica (WGS 84, EPSG:3857) | D93: geografische Position (WGS 84, EPSG:3857)
A94: Ratio | B94: Razmerje | C94: Rapporto | D94: Verhältnis
A95: Date | B95: Datum | C95: Data | D95: Datum
A96: Latitude | B96: Zemljepisna širina | C96: Latitudine | D96: Breite
A97: Longitude | B97: Zemljepisna dolžina | C97: Longitudine | D97: Länge
A98: Profile | B98: Profil | C98: Profilo | D98: Profil
A99: Location | B99: Lokacija | C99: Posizione | D99: Lage
A100: Layer | B100: Plast | C100: Strato | D100: Prüfschicht
A101: EV1 | B101: EV1 | C101: EV1 | D101: EV1
A102: EV2 | B102: EV2 | C102: EV2 | D102: EV2
A103: EV2/EV0 | B103: EV2/EV1 | C103: EV2/EV1 | D103: EV2/EV1
A104: Requirements fulfilled in total | B104: Zahteve skupaj izpolnjene | C104: Requisiti complessivamente soddisfatti | D104: Anfor. insg. erfüllt
A105: [°] | B105: [°] | C105: [°] | D105: [°]
A106: [MPa] | B106: [MPa] | C106: [MPa] | D106: [MPa]
A107: General map: | B107: Pregledna karta: | C107: Mappa generale: | D107: Übersichtskarte:
A108: Detail map: | B108: Podrobna karta: | C108: Mappa dettagliata: | D108: Detailkarte:
A109: Map | B109: Zemljevid | C109: Mappa | D109: Landkarte
A110: Update map | B110: Posodobi zemljevid | C110: Aggiorna mappa | D110: Landkarte aktualisieren
A111: Requirements: | B111: Zahteve: | C111: Requisiti: | D111: Anforderungen:
A112: Deformation module | B112: Modul deformacije | C112: Modulo di deformazione | D112: Verformungsmodul
A113: Requi. | B113: Zah. | C113: Req. | D113: Anfor.
A114: Update table | B114: Posodobi tabelo | C114: Aggiorna tabella | D114: Tabelle aktualisieren
A115: Clear table | B115: Izprazni tabelo | C115: Svuota tabella | D115: Tabelle leeren
A116: Print all | B116: Natisni vse | C116: Stampa tutto | D116: Zusammen drucken
A117: Summary | B117: Pregled | C117: Riepilogo | D117: Übersicht
A118: Map | B118: Zemljevid | C118: Mappa | D118: Karte
A119: DIN | B119: DIN | C119: DIN | D119: DIN
A120: a0: | B120: a0: | C120: a0: | D120: a0:
A121: ks [MN/m³]: | B121: ks [MN/m³]: | C121: ks [MN/m³]: | D121: ks [MN/m³]:
A122: Plate Bearing Test according to DIN 18134- | B122: Preskus s statično obremenilno ploščo po DIN 18134- | C122: Prova di carico su piastra secondo DIN 18134- | D122: Plattendruckversuch nach DIN 18134-
A123: Institute: | B123: Inštitut: | C123: Istituto: | D123: Prüfinstitut:
A124: Record number: | B124: Številka zapisa: | C124: Numero record: | D124: Datensatznummer:
A125: Card number.: | B125: Številka kartice: | C125: Numero scheda:
A126: Start of test: | B126: Začetek preskusa: | C126: Inizio prova: | D126: Versuchsbeginn:
A127: End of test: | B127: Konec preskusa: | C127: Fine prova: | D127: Versuchsende:
A128: Layer: | B128: Sloj: | C128: Strato: | D128: Schicht:
A129: Device number: | B129: Številka naprave: | C129: Numero dispositivo: | D129: Gerätenummer:
A130: Ø-Plate: | B130: Ø plošče: | C130: Ø piastra: | D130: Plattendurchmesser:
A131: Weather/Temp.: | B131: Vreme/temp.: | C131: Meteo/temp.: | D131: Witterung/Temp.:
A132: Lever ratio: | B132: Razmerje vzvoda: | C132: Rapporto leva: | D132: Hebelverhältnis:
A133: max plate tilt: | B133: Maks. nagib plošče: | C133: Inclinazione max piastra: | D133: Kippweg Plattenrand:
A134: Equipment: | B134: Oprema: | C134: Attrezzatura: | D134: Ausrüstung:
A135: Manufacturer: Anix GmbH, LVDT sensor 15mm, force sensor 100kN | B135: Proizvajalec: Anix GmbH, LVDT senzor 15 mm, senzor sile 100 kN | C135: Produttore: Anix GmbH, sensore LVDT 15 mm, sensore di forza 100 kN | D135: Hersteller Anix GmbH, induktiver Wegaufnehmer 15mm, elektronischer Kraftsensor 100kN
A136: Lat.: | B136: Zem. šir.: | C136: Lat.:
A137: Lon.: | B137: Zem. dol.: | C137: Lon.:
A138: Load so [MN/m²] | B138: Napetost so [MN/m²] | C138: Tensione so [MN/m²] | D138: Spannung so [MN/m²]
A139: Deflection s [mm] | B139: Posedek s [mm] | C139: Cedimento s [mm] | D139: Setzung s [mm]
A140: first loading | B140: Prva obremenitev | C140: Primo carico
A141: unloading | B141: Razbremenitev | C141: Scarico
A142: second loading | B142: Druga obremenitev | C142: Secondo carico
A143: second unloading | B143: Druga razbremenitev | C143: Secondo scarico | D143: 2.Entlastung
A144: third loading | B144: Tretja obremenitev | C144: Terzo carico
A145: Results | B145: Rezultati | C145: Risultati | D145: Ergebnisse
A146: Actual | B146: Dejanske vrednosti | C146: Valori effettivi | D146: Ist-Werte
A147: Nominal | B147: Nazivne vrednosti | C147: Valori nominali | D147: Sollwerte
A148: Rating | B148: Ocena | C148: Valutazione | D148: Bewertung
A149: s1max [MN/m²] | B149: s1max [MN/m²] | C149: s1max [MN/m²] | D149: s1max [MN/m²]
A150: Ev1 [MN/m²] | B150: Ev1 [MN/m²] | C150: Ev1 [MN/m²] | D150: Ev1 [MN/m²]
A151: Ev2 [MN/m²] | B151: Ev2 [MN/m²] | C151: Ev2 [MN/m²] | D151: Ev2 [MN/m²]
A152: OK | B152: V redu | C152: OK
A153: failed | B153: Neuspešno | C153: Non superato
A154: Ev2/Ev1: | B154: Ev2/Ev1: | C154: Ev2/Ev1: | D154: Ev2/Ev1:
A155: Ev3 [MN/m²] | B155: Ev3 [MN/m²] | C155: Ev3 [MN/m²] | D155: Ev3 [MN/m²]
A156: Ev3/Ev1: | B156: Ev3/Ev1: | C156: Ev3/Ev1: | D156: Ev3/Ev1:
A157: Westergaard ks: | B157: Westergaardov ks: | C157: Westergaard ks: | D157: Bettungsmodul:
A158: MN/m³ | B158: MN/m³ | C158: MN/m³ | D158: MN/m³
A159: remarks: | B159: Opombe: | C159: Note:
A160: sks | B160: sks | C160: sks | D160: sks
A161: sks korr. | B161: sks kor. | C161: sks corr. | D161: sks korr.
A162: p | B162: p | C162: p | D162: p
A163: q | B163: q | C163: q | D163: q
A164: p/2 | B164: p/2 | C164: p/2 | D164: p/2
A165: s1,25 | B165: s1,25 | C165: s1,25 | D165: s1,25
A166: k | B166: k | C166: k | D166: k
A167: Parameter | B167: Parameter | C167: Parametro | D167: Parameter
A168: a0 | B168: a0 | C168: a0 | D168: a0
A169: a1 | B169: a1 | C169: a1 | D169: a1
A170: a2 | B170: a2 | C170: a2 | D170: a2
A171: Index | B171: Indeks | C171: Indice | D171: Index
A172: smax | B172: smax | C172: smax | D172: smax
A173: Ev | B173: Ev | C173: Ev | D173: Ev
A174: k1 | B174: k1 | C174: k1 | D174: k1
A175: k2 | B175: k2 | C175: k2 | D175: k2
A176: a | B176: a | C176: a | D176: a
A177: Language: | B177: Jezik: | C177: Lingua: | D177: Sprache:
A178: Lat: | B178: Lat: | C178: Lat:
A179: Lon: | B179: Lon: | C179: Lon:
A180: Plattendurchmesser: | B180: Premer plošče: | C180: Diametro piastra: | D180: Plattendurchmesser:
A181: Hebelverhältnis: | B181: Razmerje vzvoda: | C181: Rapporto leva: | D181: Hebelverhältnis:
A182: Datensatznummer: | B182: Številka zapisa: | C182: Numero record: | D182: Datensatznummer:
A183: Stepwidth: | B183: Širina koraka: | C183: Ampiezza passo: | D183: Stepwidth:
A184: Kippweg Plattenrand: | B184: Nagib roba plošče: | C184: Inclinazione bordo piastra: | D184: Kippweg Plattenrand:
A185: Grenzwerte | B185: Mejne vrednosti | C185: Valori limite
A186: Ev2 | B186: Ev2 | C186: Ev2 | D186: Ev2
A187: Krivulje | B187: Krivulje | C187: Curve
A188: Sigma | B188: Sigma | C188: Sigma | D188: Sigma
A189: read data | B189: Preberi podatke | C189: Leggi dati | D189: Lese SD-Karte
A190: Clear GPS | B190: Počisti GPS | C190: Cancella GPS
A191: deflection s [mm] | B191: posedek s [mm] | C191: cedimento s [mm] | D191: s [mm]
A192: load so [MN/m²] | B192: obremenitev so [MN/m²] | C192: carico so [MN/m²] | D192: so [MN/m²]
A193: Plate load test - statistics | D193: Statischer Plattendruckversuch, Statistische Auswertung
A194: DIN18134 and TP BF-StB, Teil E1 1993 Equipment: plate load test AX01a Manufacturer: Anix GmbH | D194: Bestimmung des Verformungsmoduls gemäß DIN18134-2001 und TP BF-StB, Teil E1: "Prüfung auf statistischer Grundlage - Stichprobenprüfpläne -", Ausgabe 1993, Einfachplan - Variablenprüfung Prüfgerät: Plattendruckgerät AX01 Hersteller: Anix GmbH
A195: AX01 | D195: AX01
A196: Card number: | D196: Kartennummer:
A197: Weather/Temperature: | D197: Wetter/Temperatur:
A198: required minimum quantile Ev2: | D198: gefordertes Mindestquantil Ev2:
A199: required maximum quantile Ev2/Ev1: | D199: gefordertes Höchstquantil Ev2/Ev1:
A200: test - no. | D200: Nr
... 11 more rows

Sheet - (hidden)
A4: Translations
A5: Com: | B5: COM1
A6: Mode: | B6: 3
A7: Dll: | B7: MCSCM.dll
A8: Translations (0=off, 1,2,3..=active Language)
A9: 3
A10: English | B10: Slovensko | C10: Italiano | D10: Deutsch
A11: Reading | B11: Odčitavanje | C11: Lettura | D11: Einlesen
A12: ZFG2000 not found. Check serial settings. Switch it on. | B12: Ne najdem ZFG200 preveri če je naprava vključena | C12: ZFG2000 non disponibile. Verificare se lo strumento ZFG2000 é acceso o collegato | D12: ZFG2000 nicht gefunden. Überprüfen Sie, ob das Gerät eingeschaltet oder angeschlossen ist.
A13: Card not found. Please insert card. | B13: Ne najdem kartice, preveri če je vložena | C13: Lettura scheda non disponibile. Inserire scheda | D13: Karte nicht gefunden. Bitte legen Sie eine Karte ein.
A14: zaioser.dll not found. | B14: zaioser.dll nisem našel | C14: zaioser.dll non disponibile | D14: zaioser.dll wurde nicht gefunden.
A15: Reading card ... | B15: Čitanje kartice | C15: Lettura Scheda | D15: Karte lesen ...
A16: Card: | B16: Kartica | C16: Scheda: | D16: Karte:
A17: records | B17: Podatki kartice | C17: Dati | D17: Datensätze
A18: Bytes # | B18: Bytes # | C18: Bytes # | D18: Bytes #
A19: Card not readable: | B19: Kartica ni mogoče čitati | C19: Scheda non leggibile | D19: Karte nicht lesbar:
A20: Reading raw data | B20: Nastavitev osnovnih podatkov | C20: Lettura (Dati Grezzi) | D20: Rohdaten einlesen
A21: record | B21: Sklop podatkov | C21: Dati | D21: Datensatz
A22: Ready | B22: Gotovo | C22: Pronto per l`impiego | D22: Fertig
A23: Reading failed | B23: Ugotovitev napake | C23: Lettura Scheda errata | D23: Einlesen fehlgeschlagen.
A24: No data available | B24: Ni kartice | C24: Dati non disponibili | D24: Keine Daten vorhanden
A25: Save raw data as | B25: Osnovni podatki so shranjeni pod | C25: Salvare Dati Grezzi in | D25: Rohdaten speichern unter
A26: Excel was not able to create all requested sheets. | B26: Niso vneseni vsi protokoli | C26: Non é possiblile eseguire tutte le operazioni effettuate | D26: Nicht alle Protokolle wurden angelegt
A27: You are working with the template (.xlt). It is not possible to use this function. Copy this template into the template directory of Microsoft Office and create a new file using the menu 'File-New' and choose this template there. | B27: Delate s predlogo, prevzem podatklov ni mogoč. Kopirajte podatke v Office-podatkovni bazi in odprite nov file v podatkovnem meniju. | C27: State utilizzando un documento Template (.xlt). L´elaborazione dei dati non é possibbile. Copiare i dati nella Template directory di Microsoft Office e creare un nuovo File utillizzando il menú "Nuovo File" per aprire il documento Template. | D27: Sie arbeiten mit der Vorlage. Übernehmen von Daten ist nicht möglich. Kopieren Sie die Datei in das Office-Vorlagenverzeichnis und öffnen Sie dann diese Vorlage über das Datei-Menu 'Neu'. | F27: Sie arbeiten mit der Vorlage. Übernehmen von Daten ist nicht möglich. Kopieren Sie die Datei in das Office-Vorlagenverzeichnis und öffnen Sie dann diese Vorlage über das Datei-Menu 'Neu'.
A28: Delete all data on the card? | B28: Ali brišem vse podatke na kartici | C28: Cancellare tutti i dati della Scheda? | D28: Alle Daten auf der Karte löschen?
A29: Card not formated. Please format (delete) card with the tester. | B29: Kartica ni formatirana, formatirajte jo v računalniku | C29: Scheda non formattata. Formattare la Scheda nel dispositivo | D29: Die Karte ist nicht formatiert. Bitte formatieren Sie die Karte im Gerät.
A30: Formating Failed | B30: Formatiranje ni uspelo | C30: Formattazzione errata | D30: Formatierung fehlgeschlagen
A31: Testing | B31: Test | C31: Prova | D31: Teste
A32: Found | B32: Našel | C32: Trovato | D32: Gefunden
A33: Read card | B33: Čitanje kartice | C33: Lettura Scheda | D33: Karte lesen
A34: card info | B34: Informacija o kartici | C34: Info Scheda | D34: Karteninfo
A35: Data->Excel | B35: podatki exel | C35: Dati->Excel | D35: Daten->Excel
A36: Info | B36: Info | C36: Info | D36: Info
A37: Close | B37: Zapri | C37: Chiudere | D37: Schließen
A38: Read file | B38: Čitanje podatkov | C38: Lettura Dati | D38: Datei lesen
A39: card reader | B39: Čitalec kartic | C39: Lettore Scheda | D39: Kartenleser
A40: gauge (serial) | B40: Naprava (serijsko) | D40: ZFG2000 (seriell)
A41: ser. interface: | B41: serijski vmesnik | C41: Interfaccia Seriale | D41: ser. Schnittstelle:
A42: All | B42: Vsi | C42: Tutti | D42: Alle
A43: Delete card | B43: Brisanje kartice | C43: Cancel. Scheda | D43: Karte löschen
A44: Search | B44: Iskanje | C44: Cerca | D44: Suchen
A45: Card reader | B45: Čitalec kartic | C45: Lettore Scheda | D45: Kartenleser
A46: card reader (scard) | B46: Čitalec kartic skart | C46: Lettore Scheda (Scard) | D46: Kartenleser (scard)
A47: card reader (PC/SC) | B47: Čitalec kartic (PC/SC) | C47: Lettore Scheda (PC/SC) | D47: Kartenleser (PC/SC)
A48: an internal error has occured | B48: Pojavila se je napaka Zapri SmartcardManagerv Systemtray! | C48: Si é verificato un errore interno | D48: Es ist ein interner Fehler aufgetreten.
A49: No card inserted or card is not formated. Please format the card in the electronic measurement device. | B49: Kartica ni vložena ali ni formatirana, prosim formatirajte kartico v elektronskem merilniku. | C49: La scheda non é stata inserita oppure non formattata. Formattare la carta nello strumento di misurazione | D49: Die Karte ist nicht eingelegt oder nicht formatiert. Bitte löschen (formatieren) Sie die Karte im elektronischen Meßgerät.
A50: Please install the newest version of zaioser.dll and/or put it to c:\windows\! This is not required for the new AX01 with SD-Card! | B50: Prosim instalirajte novo verzijo zaioser.dll! | C50: Installare la versione piú recente del zaioser.dll! | D50: Bitte installieren sie die neueste Version der zaioser.dll! Für Geräte mit SD-Karte ist dies aber nicht nötig!
A51: The card has been removed | B51: Ni vložena nobena kartica. | C51: La Scheda non é inserita | D51: Es ist keine Karte eingelegt.
A52: transfer only to statistics | B52: Samo za statistiko | C52: Riportare solo nelle statistiche | D52: nur in Statistik übernehmen
A53: Unknown datasets (wrong device?). | B53: Nepoznani podatki - (napačen tip naprave). | C53: Dati sconosciuti (é stato utilizzato un modello di strumento sbagliato?) | D53: Unbekannte Datensätze (falscher Gerätetyp?).
A54: an internal error has occured | B54: Interna napaka | D54: Es ist ein interner Fehler aufgetreten.
A55: auto load map of GPS position | D55: Lade Landkarten automatisch.
A56: - | B56: - | C56: - | D56: -
A57: File | B57: Datoteka | C57: File | D57: Datei
A58: Enter GPS coordinates | B58: Vnesite GPS koordinate | C58: Inserisci coordinate GPS | D58: GPS Koordinaten eingeben
A59: Latitude: | B59: Latituda: | C59: Latitudine: | D59: Länge
A60: Longitude: | B60: Longituda: | C60: Longitudine: | D60: Breite
A61: OK | B61: V redu | C61: OK | D61: OK
A62: Cancel | B62: Prekliči | C62: Annulla | D62: Abbrechen
A63: Enter UTM coordinates | B63: Vnesite UTM koordinate | C63: Inserisci coordinate UTM | D63: UTM Koordinaten eingeben
A64: Zone: | B64: Zona: | C64: Zona | D64: Zone:
A65: Northing: | B65: Severni koordinat (Northing): | C65: Northing (o: Valore Nord) | D65: Nordwert
A66: Easting: | B66: Vzhodni koordinat (Easting): | C66: Easting (o: Valore Est) | D66: Ostwert
A67: North | B67: Sever | C67: Nord | D67: Nord
A68: South | B68: Jug | C68: Sud | D68: Süd

Sheet AX01-TSC (0)
B3: Statičen deformacijski modul po TSC 06.720
C4: Izvajalec | D4: =IF('Statistik stat'!D1="","",'Statistik stat'!D1) ->  | H4: Št. testa: | I4: =_Datensatznummer -> 0
C5: Naročnik: | D5: =IF('Statistik stat'!D5="","",'Statistik stat'!D5) ->  | H5: Štž. kartice: | I5: =_Kartennummer -> 0
C6: Naročilo: | D6: =IF('Statistik stat'!D6="","",'Statistik stat'!D6) ->  | H6: Začetek testa: | I6: =_MessDatum -> 00:00:00
C7: Višina nasipa: | D7: =IF('Statistik stat'!D7="","",'Statistik stat'!D7) ->  | H7: Končanje testa: | I7: =_MessDatum1 -> 00:00:00
C8: Plast: | D8: =IF('Statistik stat'!D8="","",'Statistik stat'!D8) ->  | H8: Št. naprave: | I8: =_Geraetenummer -> 0
C9: Opombe: | D9: =IF('Statistik stat'!D9="","",'Statistik stat'!D9) ->  | H9: Premer plošče: | I9: =_PlattenDurchmesser -> 0
C10: Vreme / temp.: | D10: =IF('Statistik stat'!D10="","",'Statistik stat'!D10) ->  | H10: Razmerje ročice: | I10: =_Hebelarm -> 1:0.00
C11: Izvajalec: | D11: =IF('Statistik stat'!D11="","",'Statistik stat'!D11) ->  | H11: =IF(_Tilt_mm="","","max plate tilt:") ->  | I11: =IF(_Tilt_mm="","",_Tilt_mm) -> 
C12: Naprava: | D12: AX01, Anix GmbH | H12: =IF(_cLat="","","Lat.:") -> 
H13: =IF(_cLon="","","Lon.:") -> 
F14: =IF(_cZone="","","UTM:") -> 
B15: Nr. | C15: Normalna obremenitev so [MN/m²] | D15: Posedanje s [mm] | E15: Čas t [s]
B16: Prva obremenitev
B18: Sprostitev
B20: Druga obremenitev
B22: =IF(_MessTab3="","","2.Entlastung") -> 
B24: =IF(_MessTab4="","","Drittbelastung") -> 
G38: Rezultati
G40: Ev1 [MN/m²] | I40: =Q78 -> 0.0
G41: Ev2 [MN/m²] | I41: =Q80 -> 0.0
G42: Ev2/Ev1: | I42: =IF(I40=0,"",I41/I40) -> 
I43: =IF(Q82<>"",Q82,"") -> 
G44: Širina koraka: | I44: =_Stepwidth/10000 -> 0.000
G45: a1: | I45: =CONCATENATE(TEXT(T78,"0")," (",S78,"-",R78,")") -> 0 (-)
G46: a2: | I46: =CONCATENATE(TEXT(T80,"0")," (",S80,"-",R80,")") -> 0 (-)
L76: Parameter
L77: a0 | M77: a1 | N77: a2 | O77: Index | P77: smax | Q77: Ev | R77: k1 | S77: k2 | T77: a
L83: Lat:
L84: Lon:
L85: Premer plošče:
L86: Razmerje ročice:
L87: Datum:
L88: Datum (Konec):
L89: Št.naprave:
L90: Št. zapisa na kartici:
L91: Št. karticer:
L92: Širina koraka:
L93: Tilt:
L94: Mejne vrednosti
L95: Ev2 | M95: Ev2/Ev1
L96: 45 | M96: 2.2
L97: 80 | M97: 2.3
L98: 100 | M98: 2.5
L99: 120 | M99: 2.6
L100: 150
L101: 180
L103: Krivulje
L104: Sigma | N104: _Prva obremenitev_ | P104: _Sproščanje_ | R104: _Druga obremenitev_ | T104: _Sproščanje_ | V104: _Tretja obremenitev_
L105: 0 | M105: =IF(L105<=$P$78,L105,$P$78) -> 0 | N105: =$L$78+$M$78*M105+$N$78*M105*M105 -> 0 | O105: =IF(L105<=$P$79,L105,$P$79) -> 0 | P105: =$L$79+$M$79*O105+$N$79*O105*O105 -> 0 | Q105: =IF(L105<=$P$80,L105,$P$80) -> 0 | R105: =$L$80+$M$80*Q105+$N$80*Q105*Q105 -> 0 | S105: =IF(L105<=$P$93,L105,$P$81) -> 0 | T105: =$L$81+$M$81*S105+$N$81*S105*S105 -> 0 | U105: =IF(L105<=$P$82,L105,$P$82) -> 0 | V105: =$L$82+$M$82*U105+$N$82*U105*U105 -> 0
L106: 0.02 | M106: 0 | N106: 0 | O106: 0 | P106: 0 | Q106: 0 | R106: 0 | S106: 0 | T106: 0 | U106: 0 | V106: 0
L107: 0.04 | M107: 0 | N107: 0 | O107: 0 | P107: 0 | Q107: 0 | R107: 0 | S107: 0 | T107: 0 | U107: 0 | V107: 0
L108: 0.06 | M108: 0 | N108: 0 | O108: 0 | P108: 0 | Q108: 0 | R108: 0 | S108: 0 | T108: 0 | U108: 0 | V108: 0
L109: 0.08 | M109: 0 | N109: 0 | O109: 0 | P109: 0 | Q109: 0 | R109: 0 | S109: 0 | T109: 0 | U109: 0 | V109: 0
L110: 0.1 | M110: 0 | N110: 0 | O110: 0 | P110: 0 | Q110: 0 | R110: 0 | S110: 0 | T110: 0 | U110: 0 | V110: 0
L111: 0.12 | M111: 0 | N111: 0 | O111: 0 | P111: 0 | Q111: 0 | R111: 0 | S111: 0 | T111: 0 | U111: 0 | V111: 0
L112: 0.14 | M112: 0 | N112: 0 | O112: 0 | P112: 0 | Q112: 0 | R112: 0 | S112: 0 | T112: 0 | U112: 0 | V112: 0
L113: 0.16 | M113: 0 | N113: 0 | O113: 0 | P113: 0 | Q113: 0 | R113: 0 | S113: 0 | T113: 0 | U113: 0 | V113: 0
L114: 0.18 | M114: 0 | N114: 0 | O114: 0 | P114: 0 | Q114: 0 | R114: 0 | S114: 0 | T114: 0 | U114: 0 | V114: 0
L115: 0.2 | M115: 0 | N115: 0 | O115: 0 | P115: 0 | Q115: 0 | R115: 0 | S115: 0 | T115: 0 | U115: 0 | V115: 0
L116: 0.22 | M116: 0 | N116: 0 | O116: 0 | P116: 0 | Q116: 0 | R116: 0 | S116: 0 | T116: 0 | U116: 0 | V116: 0
L117: 0.24 | M117: 0 | N117: 0 | O117: 0 | P117: 0 | Q117: 0 | R117: 0 | S117: 0 | T117: 0 | U117: 0 | V117: 0
L118: 0.26 | M118: 0 | N118: 0 | O118: 0 | P118: 0 | Q118: 0 | R118: 0 | S118: 0 | T118: 0 | U118: 0 | V118: 0
L119: 0.28 | M119: 0 | N119: 0 | O119: 0 | P119: 0 | Q119: 0 | R119: 0 | S119: 0 | T119: 0 | U119: 0 | V119: 0
L120: 0.3 | M120: 0 | N120: 0 | O120: 0 | P120: 0 | Q120: 0 | R120: 0 | S120: 0 | T120: 0 | U120: 0 | V120: 0
L121: 0.32 | M121: 0 | N121: 0 | O121: 0 | P121: 0 | Q121: 0 | R121: 0 | S121: 0 | T121: 0 | U121: 0 | V121: 0
L122: 0.34 | M122: 0 | N122: 0 | O122: 0 | P122: 0 | Q122: 0 | R122: 0 | S122: 0 | T122: 0 | U122: 0 | V122: 0
L123: 0.36 | M123: 0 | N123: 0 | O123: 0 | P123: 0 | Q123: 0 | R123: 0 | S123: 0 | T123: 0 | U123: 0 | V123: 0
L124: 0.38 | M124: 0 | N124: 0 | O124: 0 | P124: 0 | Q124: 0 | R124: 0 | S124: 0 | T124: 0 | U124: 0 | V124: 0
L125: 0.4 | M125: 0 | N125: 0 | O125: 0 | P125: 0 | Q125: 0 | R125: 0 | S125: 0 | T125: 0 | U125: 0 | V125: 0
L126: 0.42 | M126: 0 | N126: 0 | O126: 0 | P126: 0 | Q126: 0 | R126: 0 | S126: 0 | T126: 0 | U126: 0 | V126: 0
L127: 0.44 | M127: 0 | N127: 0 | O127: 0 | P127: 0 | Q127: 0 | R127: 0 | S127: 0 | T127: 0 | U127: 0 | V127: 0
L128: 0.46 | M128: 0 | N128: 0 | O128: 0 | P128: 0 | Q128: 0 | R128: 0 | S128: 0 | T128: 0 | U128: 0 | V128: 0
L129: 0.48 | M129: 0 | N129: 0 | O129: 0 | P129: 0 | Q129: 0 | R129: 0 | S129: 0 | T129: 0 | U129: 0 | V129: 0
L130: 0.5 | M130: 0 | N130: 0 | O130: 0 | P130: 0 | Q130: 0 | R130: 0 | S130: 0 | T130: 0 | U130: 0 | V130: 0
L131: 0.52 | M131: 0 | N131: 0 | O131: 0 | P131: 0 | Q131: 0 | R131: 0 | S131: 0 | T131: 0 | U131: 0 | V131: 0
L132: 0.54 | M132: 0 | N132: 0 | O132: 0 | P132: 0 | Q132: 0 | R132: 0 | S132: 0 | T132: 0 | U132: 0 | V132: 0
L133: 0.56 | M133: 0 | N133: 0 | O133: 0 | P133: 0 | Q133: 0 | R133: 0 | S133: 0 | T133: 0 | U133: 0 | V133: 0
L134: 0.58 | M134: 0 | N134: 0 | O134: 0 | P134: 0 | Q134: 0 | R134: 0 | S134: 0 | T134: 0 | U134: 0 | V134: 0
L135: 0.6 | M135: 0 | N135: 0 | O135: 0 | P135: 0 | Q135: 0 | R135: 0 | S135: 0 | T135: 0 | U135: 0 | V135: 0

Sheet AX01-CNR (0)
B3: Prova di carico con piastra rigida CNR-BU n° 146 (1992)
C4: Instituto: | D4: =IF('Statistik stat'!D1="","",'Statistik stat'!D1) ->  | H4: Numero Dati: | I4: =_Datensatznummer -> 0
C5: Committente: | D5: =IF('Statistik stat'!D5="","",'Statistik stat'!D5) ->  | H5: Numero Scheda: | I5: =_Kartennummer -> 0
C6: Progetto/Incarico: | D6: =IF('Statistik stat'!D6="","",'Statistik stat'!D6) ->  | H6: Data (start): | I6: =_MessDatum -> 00:00:00
C7: Quota di prova: | D7: =IF('Statistik stat'!D7="","",'Statistik stat'!D7) ->  | H7: Data (stop): | I7: =_MessDatum1 -> 00:00:00
C8: Strato: | D8: =IF('Statistik stat'!D8="","",'Statistik stat'!D8) ->  | H8: Numero Strumento: | I8: =_Geraetenummer -> 0
C9: Note: | D9: =IF('Statistik stat'!D9="","",'Statistik stat'!D9) ->  | H9: Plate diameter: | I9: =_PlattenDurchmesser -> 0
C10: Condizioni Atmosferiche/Temperatura: | D10: =IF('Statistik stat'!D10="","",'Statistik stat'!D10) ->  | H10: Lever ratio: | I10: =_Hebelarm -> 1:0.00
C11: Operatore: | D11: =IF('Statistik stat'!D11="","",'Statistik stat'!D11) ->  | H11: =IF(_Tilt_mm="","","max plate tilt:") ->  | I11: =IF(_Tilt_mm="","",_Tilt_mm) -> 
C12: Equipment: | D12: Ax01 Anix GmbH | H12: =IF(_cLat="","","Lat.:") -> 
H13: =IF(_cLon="","","Lon.:") -> 
F14: =IF(_cZone="","","UTM:") -> 
B15: Nr. | C15: Pressione so [kN/m²] | D15: Cedimento s [mm] | E15: Tempo t [s]
B16: first loading
B18: second loading
B20: =IF(_MessTab4="","","third loading") -> 
G36: MODULO DI DEFORMAZIONE
G37: 1° CICLO DI CARICO
G38: Intervallo di pressione (kN/m²) | I38: Md (MN/m²)
G39: =IF(N73<>"",CONCATENATE(N72/10,"-",N73/10),"") ->  | I39: =IF(O72<>"",O72,"") -> 
G40: =IF(N74<>"",CONCATENATE(N73/10,"-",N74/10),"") ->  | I40: =IF(O73<>"",O73,"") -> 
G41: =IF(N75<>"",CONCATENATE(N74/10,"-",N75/10),"") ->  | I41: =IF(O74<>"",O74,"") -> 
G42: 2° CICLO DI CARICO
G43: Intervallo di pressione (kN/m²) | I43: M'd (MN/m²)
G44: =IF(N83<>"",CONCATENATE(N82/10,"-",N83/10),"") ->  | I44: =IF(O82<>"",O82,"") -> 
G45: =IF(N84<>"",CONCATENATE(N83/10,"-",N84/10),"") ->  | I45: =IF(O83<>"",O83,"") -> 
G46: =IF(N85<>"",CONCATENATE(N84/10,"-",N85/10),"") ->  | I46: =IF(O84<>"",O84,"") -> 
G47: Valutazione qualità del costipemanto
G48: Intervallo di pressione (kN/m²) | I48: Md /M'd
G49: =IF(N83<>"",CONCATENATE(N82/10,"-",N83/10),"") ->  | I49: =IF(I44<>"",I39/I44,"") -> 
G50: =IF(N84<>"",CONCATENATE(N83/10,"-",N84/10),"") ->  | I50: =IF(I45<>"",I40/I45,"") -> 
G51: =IF(N85<>"",CONCATENATE(N84/10,"-",N85/10),"") ->  | I51: =IF(I46<>"",I41/I46,"") -> 
M72: 0: ME
M77: 1: ME
M82: 2: ME
M87: 3: ME
M92: 4: ME
N99: Parameter
N100: a0 | O100: a1 | P100: a2 | Q100: Index | R100: smax | S100: Ev | T100: k1 | U100: k2 | V100: a
N106: Lat:
N107: Lon:
N108: Plattendurchmesser:
N109: Hebelverhältnis:
N110: Datum:
N111: Datum (Ende):
N112: Gerätenummer:
N113: Datensatznummer:
N114: Kartennummer:
N115: Stepwidth:
N116: Tilt:
N117: Grenzwerte
N118: Ev2 | O118: Ev2/Ev1
N119: 45 | O119: 2.2
N120: 80 | O120: 2.3
N121: 100 | O121: 2.5
N122: 120 | O122: 2.6
N123: 150
N124: 180
N126: Kurven
N127: Sigma | P127: _Erstbelastung_ | R127: _Entlastung_ | T127: _Zweitbelastung_ | V127: _Entlastung_ | X127: _Drittbelastung_
N128: 0 | O128: =IF(N128<=$R$101*1000,N128,$R$101*1000) -> 0 | P128: =$N$101+$O$101*O128/1000+$P$101*O128*O128/1000000 -> 0 | Q128: =IF(N128<=$R$102*1000,N128,$R$102*1000) -> 0 | R128: =$N$102+$O$102*Q128/1000+$P$102*Q128*Q128/1000000 -> 0 | S128: =IF(N128<=$R$103*1000,N128,$R$103*1000) -> 0 | T128: =$N$103+$O$103*S128/1000+$P$103*S128*S128/1000000 -> 0 | U128: =IF(N128<=$R$104*1000,N128,$R$104*1000) -> 0 | V128: =$N$104+$O$104*U128/1000+$P$104*U128*U128/1000000 -> 0 | W128: =IF(N128<=$R$105*1000,N128,$R$105*1000) -> 0 | X128: =$N$105+$O$105*W128/1000+$P$105*W128*W128/1000000 -> 0
N129: 20 | O129: =IF(N129<=$R$101*1000,N129,$R$101*1000) -> 0 | P129: =$N$101+$O$101*O129/1000+$P$101*O129*O129/1000000 -> 0 | Q129: =IF(N129<=$R$102*1000,N129,$R$102*1000) -> 0 | R129: =$N$102+$O$102*Q129/1000+$P$102*Q129*Q129/1000000 -> 0 | S129: =IF(N129<=$R$103*1000,N129,$R$103*1000) -> 0 | T129: =$N$103+$O$103*S129/1000+$P$103*S129*S129/1000000 -> 0 | U129: =IF(N129<=$R$104*1000,N129,$R$104*1000) -> 0 | V129: =$N$104+$O$104*U129/1000+$P$104*U129*U129/1000000 -> 0 | W129: =IF(N129<=$R$105*1000,N129,$R$105*1000) -> 0 | X129: =$N$105+$O$105*W129/1000+$P$105*W129*W129/1000000 -> 0
N130: 40 | O130: 0 | P130: 0 | Q130: 0 | R130: 0 | S130: 0 | T130: 0 | U130: 0 | V130: 0 | W130: 0 | X130: 0
N131: 60 | O131: 0 | P131: 0 | Q131: 0 | R131: 0 | S131: 0 | T131: 0 | U131: 0 | V131: 0 | W131: 0 | X131: 0
N132: 80 | O132: 0 | P132: 0 | Q132: 0 | R132: 0 | S132: 0 | T132: 0 | U132: 0 | V132: 0 | W132: 0 | X132: 0
N133: 100 | O133: 0 | P133: 0 | Q133: 0 | R133: 0 | S133: 0 | T133: 0 | U133: 0 | V133: 0 | W133: 0 | X133: 0
N134: 120 | O134: 0 | P134: 0 | Q134: 0 | R134: 0 | S134: 0 | T134: 0 | U134: 0 | V134: 0 | W134: 0 | X134: 0
N135: 140 | O135: 0 | P135: 0 | Q135: 0 | R135: 0 | S135: 0 | T135: 0 | U135: 0 | V135: 0 | W135: 0 | X135: 0
N136: 160 | O136: 0 | P136: 0 | Q136: 0 | R136: 0 | S136: 0 | T136: 0 | U136: 0 | V136: 0 | W136: 0 | X136: 0
N137: 180 | O137: 0 | P137: 0 | Q137: 0 | R137: 0 | S137: 0 | T137: 0 | U137: 0 | V137: 0 | W137: 0 | X137: 0
N138: 200 | O138: 0 | P138: 0 | Q138: 0 | R138: 0 | S138: 0 | T138: 0 | U138: 0 | V138: 0 | W138: 0 | X138: 0
N139: 220 | O139: 0 | P139: 0 | Q139: 0 | R139: 0 | S139: 0 | T139: 0 | U139: 0 | V139: 0 | W139: 0 | X139: 0
N140: 240 | O140: 0 | P140: 0 | Q140: 0 | R140: 0 | S140: 0 | T140: 0 | U140: 0 | V140: 0 | W140: 0 | X140: 0
N141: 260 | O141: 0 | P141: 0 | Q141: 0 | R141: 0 | S141: 0 | T141: 0 | U141: 0 | V141: 0 | W141: 0 | X141: 0
N142: 280 | O142: 0 | P142: 0 | Q142: 0 | R142: 0 | S142: 0 | T142: 0 | U142: 0 | V142: 0 | W142: 0 | X142: 0
N143: 300 | O143: 0 | P143: 0 | Q143: 0 | R143: 0 | S143: 0 | T143: 0 | U143: 0 | V143: 0 | W143: 0 | X143: 0
N144: 320 | O144: 0 | P144: 0 | Q144: 0 | R144: 0 | S144: 0 | T144: 0 | U144: 0 | V144: 0 | W144: 0 | X144: 0
N145: 340 | O145: 0 | P145: 0 | Q145: 0 | R145: 0 | S145: 0 | T145: 0 | U145: 0 | V145: 0 | W145: 0 | X145: 0
N146: 360 | O146: 0 | P146: 0 | Q146: 0 | R146: 0 | S146: 0 | T146: 0 | U146: 0 | V146: 0 | W146: 0 | X146: 0
N147: 380 | O147: 0 | P147: 0 | Q147: 0 | R147: 0 | S147: 0 | T147: 0 | U147: 0 | V147: 0 | W147: 0 | X147: 0
N148: 400 | O148: 0 | P148: 0 | Q148: 0 | R148: 0 | S148: 0 | T148: 0 | U148: 0 | V148: 0 | W148: 0 | X148: 0
N149: 420 | O149: 0 | P149: 0 | Q149: 0 | R149: 0 | S149: 0 | T149: 0 | U149: 0 | V149: 0 | W149: 0 | X149: 0
N150: 440 | O150: 0 | P150: 0 | Q150: 0 | R150: 0 | S150: 0 | T150: 0 | U150: 0 | V150: 0 | W150: 0 | X150: 0
N151: 460 | O151: 0 | P151: 0 | Q151: 0 | R151: 0 | S151: 0 | T151: 0 | U151: 0 | V151: 0 | W151: 0 | X151: 0
N152: 480 | O152: 0 | P152: 0 | Q152: 0 | R152: 0 | S152: 0 | T152: 0 | U152: 0 | V152: 0 | W152: 0 | X152: 0
N153: 500 | O153: 0 | P153: 0 | Q153: 0 | R153: 0 | S153: 0 | T153: 0 | U153: 0 | V153: 0 | W153: 0 | X153: 0
N154: 520 | O154: 0 | P154: 0 | Q154: 0 | R154: 0 | S154: 0 | T154: 0 | U154: 0 | V154: 0 | W154: 0 | X154: 0
N155: 540 | O155: 0 | P155: 0 | Q155: 0 | R155: 0 | S155: 0 | T155: 0 | U155: 0 | V155: 0 | W155: 0 | X155: 0
N156: 560 | O156: 0 | P156: 0 | Q156: 0 | R156: 0 | S156: 0 | T156: 0 | U156: 0 | V156: 0 | W156: 0 | X156: 0
N157: 580 | O157: 0 | P157: 0 | Q157: 0 | R157: 0 | S157: 0 | T157: 0 | U157: 0 | V157: 0 | W157: 0 | X157: 0
N158: 600 | O158: 0 | P158: 0 | Q158: 0 | R158: 0 | S158: 0 | T158: 0 | U158: 0 | V158: 0 | W158: 0 | X158: 0

Sheet AX01-SN (0)
B3: Plattendruckversuch nach SN670317b
C4: Prüfinstitut: | D4: =IF('Statistik stat'!D1="","",'Statistik stat'!D1) ->  | H4: Datensatz: | I4: =_Datensatznummer -> 0
C5: Auftraggeber: | D5: =IF('Statistik stat'!D5="","",'Statistik stat'!D5) ->  | H5: Kartennummer: | I5: =_Kartennummer -> 0
C6: Vorhaben/Auftrag: | D6: =IF('Statistik stat'!D6="","",'Statistik stat'!D6) ->  | H6: Versuchsbeginn: | I6: =_MessDatum -> 00:00:00
C7: Prüftiefe: | D7: =IF('Statistik stat'!D7="","",'Statistik stat'!D7) ->  | H7: Versuchsende: | I7: =_MessDatum1 -> 00:00:00
C8: Schicht: | D8: =IF('Statistik stat'!D8="","",'Statistik stat'!D8) ->  | H8: Gerätenummer: | I8: =_Geraetenummer -> 0
C9: Bemerkungen: | D9: =IF('Statistik stat'!D9="","",'Statistik stat'!D9) ->  | H9: Plattendurchmesser: | I9: =_PlattenDurchmesser -> 0
C10: Witterung/Temp.: | D10: =IF('Statistik stat'!D10="","",'Statistik stat'!D10) ->  | H10: Hebelverhältnis: | I10: =_Hebelarm -> 1:0.00
C11: Prüfpersonal: | D11: =IF('Statistik stat'!D11="","",'Statistik stat'!D11) ->  | H11: =IF(_Tilt_mm="","","max plate tilt:") ->  | I11: =IF(_Tilt_mm="","",_Tilt_mm) -> 
C12: Ausrüstung: | D12: AX01a, Anix GmbH | H12: =IF(_cLat="","","Lat.:") -> 
H13: =IF(_cLon="","","Lon.:") -> 
F14: =IF(_cZone="","","UTM:") -> 
B15: Nr. | C15: Spannung so [MN/m²] | D15: Setzung s [mm] | E15: Zeit t [s]
B16: Erstbelastung
C17: 0.0000 | D17: 0.01
B18: Entlastung
C19: 0.0000 | D19: 0.02
B20: Zweitbelastung
C21: 0.0000 | D21: 0.03
B22: 2.Entlastung
C23: 0.0000 | D23: 0.04
B24: Drittbelastung
C25: 0.0000 | D25: 0.05
G43: Parameter | H43: Erstbelastung | I43: Zweitbelastung
G44: a0 | H44: =IF(_Parameter0="","",_Parameter0) ->  | I44: =IF(_Parameter2="","",_Parameter2) -> 
G45: a1 | H45: =IF(P128="","",P128) ->  | I45: =IF(P130="","",P130) -> 
G46: a2 | H46: =IF(Q128="","",Q128) ->  | I46: =IF(Q130="","",Q130) -> 
G48: Ergebnisse
H49: Erstbelastung | I49: Zweitbelastung
G50: somax [MN/m²] | H50: =S128 -> 0.000 | I50: =S130 -> 0.000
G51: Ev [MN/m²] | H51: =T128 -> 0.0 | I51: =IF(T130=0,"",T130) -> 
G52: Ev2/Ev1: | H52: =IF(OR(I51="",H51=0),"",I51/H51) -> 
G53: Untergrund
G54: s1 [MN/m²] | H54: 0.05 | I54: 0.05
G55: s2 [MN/m²] | H55: 0.15 | I55: 0.15
G56: ME [MN/m²] | H56: =IF(P101<>0,P101,"") ->  | I56: =IF(P111<>0,P111,"") -> 
G57: ME2/ME1: | H57: =IF(OR(I56="",H56=0),"",I56/H56) -> 
G58: Fundationsschicht
G59: s1 [MN/m²] | H59: 0.15 | I59: 0.15
G60: s2 [MN/m²] | H60: 0.25 | I60: 0.25
G61: ME [MN/m²] | H61: =IF(P102<>0,P102,"") ->  | I61: =IF(P112<>0,P112,"") -> 
G62: ME2/ME1: | H62: =IF(OR(I61="",H61=0),"",I61/H61) -> 
G63: Tragschicht
G64: s1 [MN/m²] | H64: 0.25 | I64: 0.25
G65: s2 [MN/m²] | H65: 0.35 | I65: 0.35
G66: ME [MN/m²] | H66: =IF(P103<>0,P103,"") ->  | I66: =IF(P113<>0,P113,"") -> 
G67: ME2/ME1: | H67: =IF(OR(I66="",H66=0),"",I66/H66) -> 
N101: 0: ME
N106: 1: ME
N111: 2: ME
N116: 3: ME
N121: 4: ME
O126: Parameter
O127: a0 | P127: a1 | Q127: a2 | R127: Index | S127: smax | T127: Ev | U127: k1 | V127: k2 | W127: a
O133: Lat:
O134: Lon:
O135: Plattendurchmesser:
O136: Hebelverhältnis:
O137: Datum:
O138: Datum (Ende):
O139: Gerätenummer:
O140: Datensatznummer:
O141: Kartennummer:
O142: Stepwidth:
O143: Kippen:
O144: Mejne vrednosti
O145: Ev2 | P145: Ev2/Ev1
O146: 45 | P146: 2.2
O147: 80 | P147: 2.3
O148: 100 | P148: 2.5
O149: 120 | P149: 2.6
O150: 150
O151: 180
O153: Krivulje
O154: Sigma | Q154: Erstbelastung | S154: Entlastung | U154: Zweitbelastung | W154: 2. Entlastung | Y154: Drittbelastung
O155: 0 | P155: =O155 -> 0 | Q155: =IF(0=$S$128,P155,$O$128+$P$128*P155+$Q$128*P155*P155) -> 0 | R155: =IF(OR($S$128=0,O155<=$S$129),O155,$S$129) -> 0 | S155: =IF(0=$S$128,R155*1.1,$O$129+$P$129*R155+$Q$129*R155*R155) -> 0 | T155: =IF(OR($S$128=0,O155<=$S$130),O155,$S$130) -> 0 | U155: =IF(0=$S$128,T155*1.2,$O$130+$P$130*T155+$Q$130*T155*T155) -> 0 | V155: =IF(OR($S$128=0,O155<=$S$143),O155,$S$131) -> 0 | W155: =IF(0=$S$128,V155*1.3,$O$131+$P$131*V155+$Q$131*V155*V155) -> 0 | X155: =IF(OR($S$128=0,O155<=$S$132),O155,$S$132) -> 0 | Y155: =IF(0=$S$128,X155*1.4,$O$132+$P$132*X155+$Q$132*X155*X155) -> 0
O156: 0.02 | P156: =O156 -> 0.02 | Q156: =IF(0=$S$128,P156,$O$128+$P$128*P156+$Q$128*P156*P156) -> 0.02 | R156: =IF(OR($S$128=0,O156<=$S$129),O156,$S$129) -> 0.02 | S156: =IF(0=$S$128,R156*1.1,$O$129+$P$129*R156+$Q$129*R156*R156) -> 0.022 | T156: =IF(OR($S$128=0,O156<=$S$130),O156,$S$130) -> 0.02 | U156: =IF(0=$S$128,T156*1.2,$O$130+$P$130*T156+$Q$130*T156*T156) -> 0.024 | V156: =IF(OR($S$128=0,O156<=$S$143),O156,$S$131) -> 0.02 | W156: =IF(0=$S$128,V156*1.3,$O$131+$P$131*V156+$Q$131*V156*V156) -> 0.026 | X156: =IF(OR($S$128=0,O156<=$S$132),O156,$S$132) -> 0.02 | Y156: =IF(0=$S$128,X156*1.4,$O$132+$P$132*X156+$Q$132*X156*X156) -> 0.028
O157: 0.04 | P157: =O157 -> 0.04 | Q157: =IF(0=$S$128,P157,$O$128+$P$128*P157+$Q$128*P157*P157) -> 0.04 | R157: =IF(OR($S$128=0,O157<=$S$129),O157,$S$129) -> 0.04 | S157: =IF(0=$S$128,R157*1.1,$O$129+$P$129*R157+$Q$129*R157*R157) -> 0.044 | T157: =IF(OR($S$128=0,O157<=$S$130),O157,$S$130) -> 0.04 | U157: =IF(0=$S$128,T157*1.2,$O$130+$P$130*T157+$Q$130*T157*T157) -> 0.048 | V157: =IF(OR($S$128=0,O157<=$S$143),O157,$S$131) -> 0.04 | W157: =IF(0=$S$128,V157*1.3,$O$131+$P$131*V157+$Q$131*V157*V157) -> 0.052 | X157: =IF(OR($S$128=0,O157<=$S$132),O157,$S$132) -> 0.04 | Y157: =IF(0=$S$128,X157*1.4,$O$132+$P$132*X157+$Q$132*X157*X157) -> 0.056
O158: 0.06 | P158: =IF(O158<=$S$128,O158,$S$128) -> 0 | Q158: =$O$128+$P$128*P158+$Q$128*P158*P158 -> 0 | R158: =IF(O158<=$S$129,O158,$S$129) -> 0 | S158: =$O$129+$P$129*R158+$Q$129*R158*R158 -> 0 | T158: =IF(O158<=$S$130,O158,$S$130) -> 0 | U158: =$O$130+$P$130*T158+$Q$130*T158*T158 -> 0 | V158: =IF(O158<=$S$143,O158,$S$131) -> 0 | W158: =$O$131+$P$131*V158+$Q$131*V158*V158 -> 0 | X158: =IF(O158<=$S$132,O158,$S$132) -> 0 | Y158: =$O$132+$P$132*X158+$Q$132*X158*X158 -> 0
O159: 0.08 | P159: 0 | Q159: 0 | R159: 0 | S159: 0 | T159: 0 | U159: 0 | V159: 0 | W159: 0 | X159: 0 | Y159: 0
O160: 0.1 | P160: 0 | Q160: 0 | R160: 0 | S160: 0 | T160: 0 | U160: 0 | V160: 0 | W160: 0 | X160: 0 | Y160: 0
O161: 0.12 | P161: 0 | Q161: 0 | R161: 0 | S161: 0 | T161: 0 | U161: 0 | V161: 0 | W161: 0 | X161: 0 | Y161: 0
O162: 0.14 | P162: 0 | Q162: 0 | R162: 0 | S162: 0 | T162: 0 | U162: 0 | V162: 0 | W162: 0 | X162: 0 | Y162: 0
O163: 0.16 | P163: 0 | Q163: 0 | R163: 0 | S163: 0 | T163: 0 | U163: 0 | V163: 0 | W163: 0 | X163: 0 | Y163: 0
O164: 0.18 | P164: 0 | Q164: 0 | R164: 0 | S164: 0 | T164: 0 | U164: 0 | V164: 0 | W164: 0 | X164: 0 | Y164: 0
O165: 0.2 | P165: 0 | Q165: 0 | R165: 0 | S165: 0 | T165: 0 | U165: 0 | V165: 0 | W165: 0 | X165: 0 | Y165: 0
O166: 0.22 | P166: 0 | Q166: 0 | R166: 0 | S166: 0 | T166: 0 | U166: 0 | V166: 0 | W166: 0 | X166: 0 | Y166: 0
O167: 0.24 | P167: 0 | Q167: 0 | R167: 0 | S167: 0 | T167: 0 | U167: 0 | V167: 0 | W167: 0 | X167: 0 | Y167: 0
O168: 0.26 | P168: 0 | Q168: 0 | R168: 0 | S168: 0 | T168: 0 | U168: 0 | V168: 0 | W168: 0 | X168: 0 | Y168: 0
O169: 0.28 | P169: 0 | Q169: 0 | R169: 0 | S169: 0 | T169: 0 | U169: 0 | V169: 0 | W169: 0 | X169: 0 | Y169: 0
O170: 0.3 | P170: 0 | Q170: 0 | R170: 0 | S170: 0 | T170: 0 | U170: 0 | V170: 0 | W170: 0 | X170: 0 | Y170: 0
O171: 0.32 | P171: 0 | Q171: 0 | R171: 0 | S171: 0 | T171: =IF(O171<=$S$130,O171,$S$130) -> 0 | U171: 0 | V171: 0 | W171: 0 | X171: 0 | Y171: 0
O172: 0.34 | P172: 0 | Q172: 0 | R172: 0 | S172: 0 | T172: 0 | U172: 0 | V172: 0 | W172: 0 | X172: 0 | Y172: 0
O173: 0.36 | P173: 0 | Q173: 0 | R173: 0 | S173: 0 | T173: 0 | U173: 0 | V173: 0 | W173: 0 | X173: 0 | Y173: 0
O174: 0.38 | P174: 0 | Q174: 0 | R174: 0 | S174: 0 | T174: 0 | U174: 0 | V174: 0 | W174: 0 | X174: 0 | Y174: 0
O175: 0.4 | P175: 0 | Q175: 0 | R175: 0 | S175: 0 | T175: 0 | U175: 0 | V175: 0 | W175: 0 | X175: 0 | Y175: 0
O176: 0.42 | P176: 0 | Q176: 0 | R176: 0 | S176: 0 | T176: 0 | U176: 0 | V176: 0 | W176: 0 | X176: 0 | Y176: 0
O177: 0.44 | P177: 0 | Q177: 0 | R177: 0 | S177: 0 | T177: 0 | U177: 0 | V177: 0 | W177: 0 | X177: 0 | Y177: 0
O178: 0.46 | P178: 0 | Q178: 0 | R178: 0 | S178: 0 | T178: 0 | U178: 0 | V178: 0 | W178: 0 | X178: 0 | Y178: 0
O179: 0.48 | P179: 0 | Q179: 0 | R179: 0 | S179: 0 | T179: 0 | U179: 0 | V179: 0 | W179: 0 | X179: 0 | Y179: 0
O180: 0.5 | P180: 0 | Q180: 0 | R180: 0 | S180: 0 | T180: 0 | U180: 0 | V180: 0 | W180: 0 | X180: 0 | Y180: 0
O181: 0.52 | P181: 0 | Q181: 0 | R181: 0 | S181: 0 | T181: 0 | U181: 0 | V181: 0 | W181: 0 | X181: 0 | Y181: 0
O182: 0.54 | P182: 0 | Q182: 0 | R182: 0 | S182: 0 | T182: 0 | U182: 0 | V182: 0 | W182: 0 | X182: 0 | Y182: 0
O183: 0.56 | P183: 0 | Q183: 0 | R183: 0 | S183: 0 | T183: 0 | U183: 0 | V183: 0 | W183: 0 | X183: 0 | Y183: 0
O184: 0.58 | P184: 0 | Q184: 0 | R184: 0 | S184: 0 | T184: 0 | U184: 0 | V184: 0 | W184: 0 | X184: 0 | Y184: 0
O185: 0.6 | P185: 0 | Q185: 0 | R185: 0 | S185: 0 | T185: 0 | U185: 0 | V185: 0 | W185: 0 | X185: 0 | Y185: 0

Sheet AX01-ÖNORM (0)
B3: Plattendruckversuch nach ÖNORMB4417
C4: Prüfinstitut: | D4: =IF('Statistik stat'!D1="","",'Statistik stat'!D1) ->  | I4: Datensatz: | J4: =_Datensatznummer -> 0
C5: Auftraggeber: | D5: =IF('Statistik stat'!D5="","",'Statistik stat'!D5) ->  | I5: Kartennummer: | J5: =_Kartennummer -> 0
C6: Vorhaben/Auftrag: | D6: =IF('Statistik stat'!D6="","",'Statistik stat'!D6) ->  | I6: Versuchsbeginn: | J6: =_MessDatum -> 00:00:00
C7: Prüftiefe: | D7: =IF('Statistik stat'!D7="","",'Statistik stat'!D7) ->  | I7: Versuchsende: | J7: =_MessDatum1 -> 00:00:00
C8: Schicht: | D8: =IF('Statistik stat'!D8="","",'Statistik stat'!D8) ->  | I8: Gerätenummer: | J8: =_Geraetenummer -> 0
C9: Bemerkungen: | D9: =IF('Statistik stat'!D9="","",'Statistik stat'!D9) ->  | I9: Plattendurchmesser: | J9: =_PlattenDurchmesser -> 0
C10: Witterung/Temp.: | D10: =IF('Statistik stat'!D10="","",'Statistik stat'!D10) ->  | I10: Hebelverhältnis: | J10: =_Hebelarm -> 1:0.00
C11: Prüfpersonal: | D11: =IF('Statistik stat'!D11="","",'Statistik stat'!D11) ->  | I11: =IF(_Tilt_mm="","","max plate tilt:") ->  | J11: =IF(_Tilt_mm="","",_Tilt_mm) -> 
C12: Ausrüstung: | D12: AX01a, Anix GmbH | I12: =IF(_cLat="","","Lat.:") -> 
I13: =IF(_cLon="","","Lon.:") -> 
G14: =IF(_cZone="","","UTM:") -> 
B15: Nr. | C15: Spannung so [MN/m²] | D15: Setzung s [mm] | E15: Zeit t [s]
B16: Erstbelastung
C17: 0.0000 | D17: 0.01
B18: Entlastung
C19: 0.0010 | D19: 0.02
B20: Zweitbelastung
C21: 0.0020 | D21: 0.03
B22: 2.Entlastung
C23: 0.0030 | D23: 0.04
B24: Drittbelastung
C25: 0.0040 | D25: 0.05
G45: Ergebnisse | H45: Erstbelastung | I45: Zweitbelastung | J45: Drittbelastung
G46: somax [MN/m²] | H46: =S128 -> 0.000 | I46: =IF(S130<>0,S130,"") ->  | J46: =IF(S132<>0,S132,"") -> 
G47: Ev [MN/m²] | H47: =T128 -> 0.0 | I47: =IF(T130<>0,T130,"") ->  | J47: =IF(T132<>0,T132,"") -> 
G48: Ev2/Ev1: | H48: =IF(OR(H47=0,I47=""),"",I47/H47) -> 
G49: Ev3/Ev2: | I49: =IF(OR(I47=0,I47="",J47=""),"",J47/I47) -> 
G51: =IF(H51<>"","Bettungsmodul:","") ->  | I51: =IF(H51<>"","MN/m³","") -> 
N101: 0: ME
N106: 1: ME
N111: 2: ME
N116: 3: ME
N121: 4: ME
O126: Parameter
O127: a0 | P127: a1 | Q127: a2 | R127: Index | S127: smax | T127: Ev | U127: k1 | V127: k2 | W127: a
O133: Lat:
O134: Lon:
O135: Plattendurchmesser:
O136: Hebelverhältnis:
O137: Datum:
O138: Datum (Ende):
O139: Gerätenummer:
O140: Datensatznummer:
O141: Kartennummer:
O142: Stepwidth:
O144: Mejne vrednosti
O145: Ev2 | P145: Ev2/Ev1
O146: 45 | P146: 2.2
O147: 80 | P147: 2.3
O148: 100 | P148: 2.5
O149: 120 | P149: 2.6
O150: 150
O151: 180
O153: Krivulje
O154: Sigma | Q154: Erstbelastung | S154: Entlastung | U154: Zweitbelastung | W154: 2. Entlastung | Y154: Drittbelastung
O155: 0 | P155: =O155 -> 0 | Q155: =IF(0=$S$128,P155,$O$128+$P$128*P155+$Q$128*P155*P155) -> 0 | R155: =IF(OR($S$128=0,O155<=$S$129),O155,$S$129) -> 0 | S155: =IF(0=$S$128,R155*1.1,$O$129+$P$129*R155+$Q$129*R155*R155) -> 0 | T155: =IF(OR($S$128=0,O155<=$S$130),O155,$S$130) -> 0 | U155: =IF(0=$S$128,T155*1.2,$O$130+$P$130*T155+$Q$130*T155*T155) -> 0 | V155: =IF(OR($S$128=0,O155<=$S$143),O155,$S$131) -> 0 | W155: =IF(0=$S$128,V155*1.3,$O$131+$P$131*V155+$Q$131*V155*V155) -> 0 | X155: =IF(OR($S$128=0,O155<=$S$132),O155,$S$132) -> 0 | Y155: =IF(0=$S$128,X155*1.4,$O$132+$P$132*X155+$Q$132*X155*X155) -> 0
O156: 0.02 | P156: =O156 -> 0.02 | Q156: =IF(0=$S$128,P156,$O$128+$P$128*P156+$Q$128*P156*P156) -> 0.02 | R156: =IF(OR($S$128=0,O156<=$S$129),O156,$S$129) -> 0.02 | S156: =IF(0=$S$128,R156*1.1,$O$129+$P$129*R156+$Q$129*R156*R156) -> 0.022 | T156: =IF(OR($S$128=0,O156<=$S$130),O156,$S$130) -> 0.02 | U156: =IF(0=$S$128,T156*1.2,$O$130+$P$130*T156+$Q$130*T156*T156) -> 0.024 | V156: =IF(OR($S$128=0,O156<=$S$143),O156,$S$131) -> 0.02 | W156: =IF(0=$S$128,V156*1.3,$O$131+$P$131*V156+$Q$131*V156*V156) -> 0.026 | X156: =IF(OR($S$128=0,O156<=$S$132),O156,$S$132) -> 0.02 | Y156: =IF(0=$S$128,X156*1.4,$O$132+$P$132*X156+$Q$132*X156*X156) -> 0.028
O157: 0.04 | P157: =O157 -> 0.04 | Q157: =IF(0=$S$128,P157,$O$128+$P$128*P157+$Q$128*P157*P157) -> 0.04 | R157: =IF(OR($S$128=0,O157<=$S$129),O157,$S$129) -> 0.04 | S157: =IF(0=$S$128,R157*1.1,$O$129+$P$129*R157+$Q$129*R157*R157) -> 0.044 | T157: =IF(OR($S$128=0,O157<=$S$130),O157,$S$130) -> 0.04 | U157: =IF(0=$S$128,T157*1.2,$O$130+$P$130*T157+$Q$130*T157*T157) -> 0.048 | V157: =IF(OR($S$128=0,O157<=$S$143),O157,$S$131) -> 0.04 | W157: =IF(0=$S$128,V157*1.3,$O$131+$P$131*V157+$Q$131*V157*V157) -> 0.052 | X157: =IF(OR($S$128=0,O157<=$S$132),O157,$S$132) -> 0.04 | Y157: =IF(0=$S$128,X157*1.4,$O$132+$P$132*X157+$Q$132*X157*X157) -> 0.056
O158: 0.06 | P158: =IF(O158<=$S$128,O158,$S$128) -> 0 | Q158: =$O$128+$P$128*P158+$Q$128*P158*P158 -> 0 | R158: =IF(O158<=$S$129,O158,$S$129) -> 0 | S158: =$O$129+$P$129*R158+$Q$129*R158*R158 -> 0 | T158: =IF(O158<=$S$130,O158,$S$130) -> 0 | U158: =$O$130+$P$130*T158+$Q$130*T158*T158 -> 0 | V158: =IF(O158<=$S$143,O158,$S$131) -> 0 | W158: =$O$131+$P$131*V158+$Q$131*V158*V158 -> 0 | X158: =IF(O158<=$S$132,O158,$S$132) -> 0 | Y158: =$O$132+$P$132*X158+$Q$132*X158*X158 -> 0
O159: 0.08 | P159: 0 | Q159: 0 | R159: 0 | S159: 0 | T159: 0 | U159: 0 | V159: 0 | W159: 0 | X159: 0 | Y159: 0
O160: 0.1 | P160: 0 | Q160: 0 | R160: 0 | S160: 0 | T160: 0 | U160: 0 | V160: 0 | W160: 0 | X160: 0 | Y160: 0
O161: 0.12 | P161: 0 | Q161: 0 | R161: 0 | S161: 0 | T161: 0 | U161: 0 | V161: 0 | W161: 0 | X161: 0 | Y161: 0
O162: 0.14 | P162: 0 | Q162: 0 | R162: 0 | S162: 0 | T162: 0 | U162: 0 | V162: 0 | W162: 0 | X162: 0 | Y162: 0
O163: 0.16 | P163: 0 | Q163: 0 | R163: 0 | S163: 0 | T163: 0 | U163: 0 | V163: 0 | W163: 0 | X163: 0 | Y163: 0
O164: 0.18 | P164: 0 | Q164: 0 | R164: 0 | S164: 0 | T164: 0 | U164: 0 | V164: 0 | W164: 0 | X164: 0 | Y164: 0
O165: 0.2 | P165: 0 | Q165: 0 | R165: 0 | S165: 0 | T165: 0 | U165: 0 | V165: 0 | W165: 0 | X165: 0 | Y165: 0
O166: 0.22 | P166: 0 | Q166: 0 | R166: 0 | S166: 0 | T166: 0 | U166: 0 | V166: 0 | W166: 0 | X166: 0 | Y166: 0
O167: 0.24 | P167: 0 | Q167: 0 | R167: 0 | S167: 0 | T167: 0 | U167: 0 | V167: 0 | W167: 0 | X167: 0 | Y167: 0
O168: 0.26 | P168: 0 | Q168: 0 | R168: 0 | S168: 0 | T168: 0 | U168: 0 | V168: 0 | W168: 0 | X168: 0 | Y168: 0
O169: 0.28 | P169: 0 | Q169: 0 | R169: 0 | S169: 0 | T169: 0 | U169: 0 | V169: 0 | W169: 0 | X169: 0 | Y169: 0
O170: 0.3 | P170: 0 | Q170: 0 | R170: 0 | S170: 0 | T170: 0 | U170: 0 | V170: 0 | W170: 0 | X170: 0 | Y170: 0
O171: 0.32 | P171: 0 | Q171: 0 | R171: 0 | S171: 0 | T171: 0 | U171: 0 | V171: 0 | W171: 0 | X171: 0 | Y171: 0
O172: 0.34 | P172: 0 | Q172: 0 | R172: 0 | S172: 0 | T172: 0 | U172: 0 | V172: 0 | W172: 0 | X172: 0 | Y172: 0
O173: 0.36 | P173: 0 | Q173: 0 | R173: 0 | S173: 0 | T173: 0 | U173: 0 | V173: 0 | W173: 0 | X173: 0 | Y173: 0
O174: 0.38 | P174: 0 | Q174: 0 | R174: 0 | S174: 0 | T174: 0 | U174: 0 | V174: 0 | W174: 0 | X174: 0 | Y174: 0
O175: 0.4 | P175: 0 | Q175: 0 | R175: 0 | S175: 0 | T175: 0 | U175: 0 | V175: 0 | W175: 0 | X175: 0 | Y175: 0
O176: 0.42 | P176: 0 | Q176: 0 | R176: 0 | S176: 0 | T176: 0 | U176: 0 | V176: 0 | W176: 0 | X176: 0 | Y176: 0
O177: 0.44 | P177: 0 | Q177: 0 | R177: 0 | S177: 0 | T177: 0 | U177: 0 | V177: 0 | W177: 0 | X177: 0 | Y177: 0
O178: 0.46 | P178: 0 | Q178: 0 | R178: 0 | S178: 0 | T178: 0 | U178: 0 | V178: 0 | W178: 0 | X178: 0 | Y178: 0
O179: 0.48 | P179: 0 | Q179: 0 | R179: 0 | S179: 0 | T179: 0 | U179: 0 | V179: 0 | W179: 0 | X179: 0 | Y179: 0
O180: 0.5 | P180: 0 | Q180: 0 | R180: 0 | S180: 0 | T180: 0 | U180: 0 | V180: 0 | W180: 0 | X180: 0 | Y180: 0
O181: 0.52 | P181: 0 | Q181: 0 | R181: 0 | S181: 0 | T181: 0 | U181: 0 | V181: 0 | W181: 0 | X181: 0 | Y181: 0
O182: 0.54 | P182: 0 | Q182: 0 | R182: 0 | S182: 0 | T182: 0 | U182: 0 | V182: 0 | W182: 0 | X182: 0 | Y182: 0
O183: 0.56 | P183: 0 | Q183: 0 | R183: 0 | S183: 0 | T183: 0 | U183: 0 | V183: 0 | W183: 0 | X183: 0 | Y183: 0
O184: 0.58 | P184: 0 | Q184: 0 | R184: 0 | S184: 0 | T184: 0 | U184: 0 | V184: 0 | W184: 0 | X184: 0 | Y184: 0
O185: 0.6 | P185: 0 | Q185: 0 | R185: 0 | S185: 0 | T185: 0 | U185: 0 | V185: 0 | W185: 0 | X185: 0 | Y185: 0

Sheet AX01-SB (0)
B3: Plate load test SB250/TB2000
C4: Institute: | D4: =IF('Statistik stat'!D1="","",'Statistik stat'!D1) ->  | H4: Record number: | I4: =_Datensatznummer -> 0
C5: Client: | D5: =IF('Statistik stat'!D5="","",'Statistik stat'!D5) ->  | H5: Card number.: | I5: =_Kartennummer -> 0
C6: Project: | D6: =IF('Statistik stat'!D6="","",'Statistik stat'!D6) ->  | H6: Start of test: | I6: =_MessDatum -> 00:00:00
C7: Test depth: | D7: =IF('Statistik stat'!D7="","",'Statistik stat'!D7) ->  | H7: End of test: | I7: =_MessDatum1 -> 00:00:00
C8: Layer: | D8: =IF('Statistik stat'!D8="","",'Statistik stat'!D8) ->  | H8: Device number: | I8: =_Geraetenummer -> 0
C9: Remarks: | D9: =IF('Statistik stat'!D9="","",'Statistik stat'!D9) ->  | H9: Ø-Plate: | I9: =_PlattenDurchmesser -> 0
C10: Weather/Temp.: | D10: =IF('Statistik stat'!D10="","",'Statistik stat'!D10) ->  | H10: Lever ratio: | I10: =_Hebelarm -> 1:0.00
C11: Operator: | D11: =IF('Statistik stat'!D11="","",'Statistik stat'!D11) ->  | H11: =IF(_Tilt_mm="","","max plate tilt:") ->  | I11: =IF(_Tilt_mm="","",_Tilt_mm) -> 
C12: Equipment: | D12: Ax01a, Anix GmbH | H12: =IF(_cLat="","","Lat.:") -> 
H13: =IF(_cLon="","","Lon.:") -> 
F14: =IF(_cZone="","","UTM:") -> 
G15: =IF(_cZone="","","Lambert 72:") ->  | H15: =Lambert72_X(_cLat,_cLon) ->  | I15: =Lambert72_Y(_cLat,_cLon) -> 
B16: Nr. | C16: load so [MN/m²] | D16: deflection s [mm] | E16: time t [s]
B17: first loading
B19: =IF(_MessTab2="","","second loading") -> 
B21: =IF(_MessTab4="","","third loading") -> 
G37: Results
G38: first load cycle
G39: load interval (kN/m²) | I39: M1 (MN/m²)
G40: =IF(N69<>"",CONCATENATE(N68/10,"-",N69/10),"") ->  | I40: =IF(O68<>"",O68,"") -> 
G41: =IF(N70<>"",CONCATENATE(N69/10,"-",N70/10),"") ->  | I41: =IF(O69<>"",O69,"") -> 
G42: =IF(N71<>"",CONCATENATE(N70/10,"-",N71/10),"") ->  | I42: =IF(O70<>"",O70,"") -> 
G43: second load cycle
G44: load interval (kN/m²) | I44: M2 (MN/m²)
G45: =IF(N79<>"",CONCATENATE(N78/10,"-",N79/10),"") ->  | I45: =IF(O78<>"",O78,"") -> 
G46: =IF(N80<>"",CONCATENATE(N79/10,"-",N80/10),"") ->  | I46: =IF(O79<>"",O79,"") -> 
G47: =IF(N81<>"",CONCATENATE(N80/10,"-",N81/10),"") ->  | I47: =IF(O80<>"",O80,"") -> 
M68: 0: ME
M73: 1: ME
M78: 2: ME
M83: 3: ME
M88: 4: ME
N95: Parameter
N96: a0 | O96: a1 | P96: a2 | Q96: Index | R96: smax | S96: Ev | T96: k1 | U96: k2 | V96: a
N102: Lat:
N103: Lon:
N104: Plattendurchmesser:
N105: Hebelverhältnis:
N106: Datum:
N107: Datum (Ende):
N108: Gerätenummer:
N109: Datensatznummer:
N110: Kartennummer:
N111: Stepwidth:
N112: Kippweg Plattenrand:
N113: Grenzwerte
N114: Ev2 | O114: Ev2/Ev1
N115: 45 | O115: 2.2
N116: 80 | O116: 2.3
N117: 100 | O117: 2.5
N118: 120 | O118: 2.6
N119: 150
N120: 180
N122: Kurven
N123: Sigma | P123: _Erstbelastung_ | R123: _Entlastung_ | T123: _Zweitbelastung_ | V123: _Entlastung_ | X123: _Drittbelastung_
N124: 0 | O124: =IF(N124<=$R$97,N124,$R$97) -> 0 | P124: =$N$97+$O$97*O124+$P$97*O124*O124 -> 0 | Q124: =IF(N124<=$R$98,N124,$R$98) -> 0 | R124: =$N$98+$O$98*Q124+$P$98*Q124*Q124 -> 0 | S124: =IF(N124<=$R$99,N124,$R$99) -> 0 | T124: =$N$99+$O$99*S124+$P$99*S124*S124 -> 0 | U124: =IF(N124<=$R$100,N124,$R$100) -> 0 | V124: =$N$100+$O$100*U124+$P$100*U124*U124 -> 0 | W124: =IF(N124<=$R$101,N124,$R$101) -> 0 | X124: =$N$101+$O$101*W124+$P$101*W124*W124 -> 0
N125: 0.02 | O125: =IF(N125<=$R$97,N125,$R$97) -> 0 | P125: =$N$97+$O$97*O125+$P$97*O125*O125 -> 0 | Q125: =IF(N125<=$R$98,N125,$R$98) -> 0 | R125: =$N$98+$O$98*Q125+$P$98*Q125*Q125 -> 0 | S125: =IF(N125<=$R$99,N125,$R$99) -> 0 | T125: =$N$99+$O$99*S125+$P$99*S125*S125 -> 0 | U125: =IF(N125<=$R$100,N125,$R$100) -> 0 | V125: =$N$100+$O$100*U125+$P$100*U125*U125 -> 0 | W125: =IF(N125<=$R$101,N125,$R$101) -> 0 | X125: =$N$101+$O$101*W125+$P$101*W125*W125 -> 0
N126: 0.04 | O126: 0 | P126: 0 | Q126: 0 | R126: 0 | S126: 0 | T126: 0 | U126: 0 | V126: 0 | W126: 0 | X126: 0
N127: 0.06 | O127: 0 | P127: 0 | Q127: 0 | R127: 0 | S127: 0 | T127: 0 | U127: 0 | V127: 0 | W127: 0 | X127: 0
N128: 0.08 | O128: 0 | P128: 0 | Q128: 0 | R128: 0 | S128: 0 | T128: 0 | U128: 0 | V128: 0 | W128: 0 | X128: 0
N129: 0.1 | O129: 0 | P129: 0 | Q129: 0 | R129: 0 | S129: 0 | T129: 0 | U129: 0 | V129: 0 | W129: 0 | X129: 0
N130: 0.12 | O130: 0 | P130: 0 | Q130: 0 | R130: 0 | S130: 0 | T130: 0 | U130: 0 | V130: 0 | W130: 0 | X130: 0
N131: 0.14 | O131: 0 | P131: 0 | Q131: 0 | R131: 0 | S131: 0 | T131: 0 | U131: 0 | V131: 0 | W131: 0 | X131: 0
N132: 0.16 | O132: 0 | P132: 0 | Q132: 0 | R132: 0 | S132: 0 | T132: 0 | U132: 0 | V132: 0 | W132: 0 | X132: 0
N133: 0.18 | O133: 0 | P133: 0 | Q133: 0 | R133: 0 | S133: 0 | T133: 0 | U133: 0 | V133: 0 | W133: 0 | X133: 0
N134: 0.2 | O134: 0 | P134: 0 | Q134: 0 | R134: 0 | S134: 0 | T134: 0 | U134: 0 | V134: 0 | W134: 0 | X134: 0
N135: 0.22 | O135: 0 | P135: 0 | Q135: 0 | R135: 0 | S135: 0 | T135: 0 | U135: 0 | V135: 0 | W135: 0 | X135: 0
N136: 0.24 | O136: 0 | P136: 0 | Q136: 0 | R136: 0 | S136: 0 | T136: 0 | U136: 0 | V136: 0 | W136: 0 | X136: 0
N137: 0.26 | O137: 0 | P137: 0 | Q137: 0 | R137: 0 | S137: 0 | T137: 0 | U137: 0 | V137: 0 | W137: 0 | X137: 0
N138: 0.28 | O138: 0 | P138: 0 | Q138: 0 | R138: 0 | S138: 0 | T138: 0 | U138: 0 | V138: 0 | W138: 0 | X138: 0
N139: 0.3 | O139: 0 | P139: 0 | Q139: 0 | R139: 0 | S139: 0 | T139: 0 | U139: 0 | V139: 0 | W139: 0 | X139: 0
N140: 0.32 | O140: 0 | P140: 0 | Q140: 0 | R140: 0 | S140: 0 | T140: 0 | U140: 0 | V140: 0 | W140: 0 | X140: 0
N141: 0.34 | O141: 0 | P141: 0 | Q141: 0 | R141: 0 | S141: 0 | T141: 0 | U141: 0 | V141: 0 | W141: 0 | X141: 0
N142: 0.36 | O142: 0 | P142: 0 | Q142: 0 | R142: 0 | S142: 0 | T142: 0 | U142: 0 | V142: 0 | W142: 0 | X142: 0
N143: 0.38 | O143: 0 | P143: 0 | Q143: 0 | R143: 0 | S143: 0 | T143: 0 | U143: 0 | V143: 0 | W143: 0 | X143: 0
N144: 0.4 | O144: 0 | P144: 0 | Q144: 0 | R144: 0 | S144: 0 | T144: 0 | U144: 0 | V144: 0 | W144: 0 | X144: 0
N145: 0.42 | O145: 0 | P145: 0 | Q145: 0 | R145: 0 | S145: 0 | T145: 0 | U145: 0 | V145: 0 | W145: 0 | X145: 0
N146: 0.44 | O146: 0 | P146: 0 | Q146: 0 | R146: 0 | S146: 0 | T146: 0 | U146: 0 | V146: 0 | W146: 0 | X146: 0
N147: 0.46 | O147: 0 | P147: 0 | Q147: 0 | R147: 0 | S147: 0 | T147: 0 | U147: 0 | V147: 0 | W147: 0 | X147: 0
N148: 0.48 | O148: 0 | P148: 0 | Q148: 0 | R148: 0 | S148: 0 | T148: 0 | U148: 0 | V148: 0 | W148: 0 | X148: 0
N149: 0.5 | O149: 0 | P149: 0 | Q149: 0 | R149: 0 | S149: 0 | T149: 0 | U149: 0 | V149: 0 | W149: 0 | X149: 0
N150: 0.52 | O150: 0 | P150: 0 | Q150: 0 | R150: 0 | S150: 0 | T150: 0 | U150: 0 | V150: 0 | W150: 0 | X150: 0
N151: 0.54 | O151: 0 | P151: 0 | Q151: 0 | R151: 0 | S151: 0 | T151: 0 | U151: 0 | V151: 0 | W151: 0 | X151: 0
N152: 0.56 | O152: 0 | P152: 0 | Q152: 0 | R152: 0 | S152: 0 | T152: 0 | U152: 0 | V152: 0 | W152: 0 | X152: 0
N153: 0.58 | O153: 0 | P153: 0 | Q153: 0 | R153: 0 | S153: 0 | T153: 0 | U153: 0 | V153: 0 | W153: 0 | X153: 0
N154: 0.6 | O154: 0 | P154: 0 | Q154: 0 | R154: 0 | S154: 0 | T154: 0 | U154: 0 | V154: 0 | W154: 0 | X154: 0

Sheet AX01-NFP (0)
B3: Plate load test NFP94-117-1
C4: Institute: | D4: =IF('Statistik stat'!D1="","",'Statistik stat'!D1) ->  | I4: Record number: | J4: =_Datensatznummer -> 0
C5: Client: | D5: =IF('Statistik stat'!D5="","",'Statistik stat'!D5) ->  | I5: Card number.: | J5: =_Kartennummer -> 0
C6: Project: | D6: =IF('Statistik stat'!D6="","",'Statistik stat'!D6) ->  | I6: Start of test: | J6: =_MessDatum -> 00:00:00
C7: Test depth: | D7: =IF('Statistik stat'!D7="","",'Statistik stat'!D7) ->  | I7: End of test: | J7: =_MessDatum1 -> 00:00:00
C8: Layer: | D8: =IF('Statistik stat'!D8="","",'Statistik stat'!D8) ->  | I8: Device number: | J8: =_Geraetenummer -> 0
C9: Remarks: | D9: =IF('Statistik stat'!D9="","",'Statistik stat'!D9) ->  | I9: Ø-Plate: | J9: =_PlattenDurchmesser -> 0
C10: Weather/Temp.: | D10: =IF('Statistik stat'!D10="","",'Statistik stat'!D10) ->  | I10: Lever ratio: | J10: =_Hebelarm -> 1:0.00
C11: Operator: | D11: =IF('Statistik stat'!D11="","",'Statistik stat'!D11) ->  | I11: Poisson: | J11: =_Poisson -> 0
C12: Equipment: | D12: Manufacturer: Anix GmbH, LVDT sensor 15mm, force sensor 100kN | I12: =IF(_Tilt_mm="","","max plate tilt:") ->  | J12: =IF(_Tilt_mm="","",_Tilt_mm) -> 
I13: =IF(_cLat="","","Lat.:") -> 
I14: =IF(_cLon="","","Lon.:") -> 
G15: =IF(_cZone="","","UTM:") -> 
B16: Nr. | C16: load so [MN/m²] | D16: deflection s [mm] | E16: time t [s]
B17: Load cycle
C18: 0.0000 | D18: 0.01
G37: Ev1: | H37: =IF(T118<>0,T118,"") ->  | I37: MN/m²
G38: Ev2: | H38: =IF(T120<>0,T120,"") ->  | I38: MN/m²
G39: Ev2/Ev1: | H39: =IF(T118<>0,T120/T118,"") -> 
G41: =IF(H41<>"","Bettungsmodul:","") ->  | I41: =IF(H41<>"","MN/m³","") -> 
N91: 0: ME
N96: 1: ME
N101: 2: ME
N106: 3: ME
N111: 4: ME
O116: Parameter
O117: a0 | P117: a1 | Q117: a2 | R117: Index | S117: smax | T117: Ev | U117: k1 | V117: k2 | W117: a
O125: Lat:
O126: Lon:
O127: Plattendurchmesser:
O128: Hebelverhältnis:
O129: Datum:
O130: Datum (Ende):
O131: Gerätenummer:
O132: Datensatznummer:
O133: Kartennummer:
O134: Stepwidth:
O135: Poisson: | P135: 0
O136: Kipp:
O137: Mejne vrednosti
O138: Ev2 | P138: Ev2/Ev1
O139: 45 | P139: 2.2
O140: 80 | P140: 2.3
O141: 100 | P141: 2.5
O142: 120 | P142: 2.6
O143: 150
O144: 180
O146: Krivulje
O147: Sigma | Q147: Erstbelastung | S147: Entlastung | U147: Zweitbelastung | W147: 2. Entlastung | Y147: Drittbelastung
O148: 0 | P148: =O148 -> 0 | Q148: =IF(0=$S$118,P148,$O$118+$P$118*P148+$Q$118*P148*P148) -> 0 | R148: =IF(OR($S$118=0,O148<=$S$119),O148,$S$119) -> 0 | S148: =IF(0=$S$118,R148*1.1,$O$119+$P$119*R148+$Q$119*R148*R148) -> 0 | T148: =IF(OR($S$118=0,O148<=$S$120),O148,$S$120) -> 0 | U148: =IF(0=$S$118,T148*1.2,$O$120+$P$120*T148+$Q$120*T148*T148) -> 0 | V148: =IF(OR($S$118=0,O148<=$S$135),O148,$S$121) -> 0 | W148: =IF(0=$S$118,V148*1.3,$O$121+$P$121*V148+$Q$121*V148*V148) -> 0 | X148: =IF(OR($S$118=0,O148<=$S$122),O148,$S$122) -> 0 | Y148: =IF(0=$S$118,X148*1.4,$O$122+$P$122*X148+$Q$122*X148*X148) -> 0
O149: 0.02 | P149: =O149 -> 0.02 | Q149: =IF(0=$S$118,P149,$O$118+$P$118*P149+$Q$118*P149*P149) -> 0.02 | R149: =IF(OR($S$118=0,O149<=$S$119),O149,$S$119) -> 0.02 | S149: =IF(0=$S$118,R149*1.1,$O$119+$P$119*R149+$Q$119*R149*R149) -> 0.022 | T149: =IF(OR($S$118=0,O149<=$S$120),O149,$S$120) -> 0.02 | U149: =IF(0=$S$118,T149*1.2,$O$120+$P$120*T149+$Q$120*T149*T149) -> 0.024 | V149: =IF(OR($S$118=0,O149<=$S$135),O149,$S$121) -> 0.02 | W149: =IF(0=$S$118,V149*1.3,$O$121+$P$121*V149+$Q$121*V149*V149) -> 0.026 | X149: =IF(OR($S$118=0,O149<=$S$122),O149,$S$122) -> 0.02 | Y149: =IF(0=$S$118,X149*1.4,$O$122+$P$122*X149+$Q$122*X149*X149) -> 0.028
O150: 0.04 | P150: =O150 -> 0.04 | Q150: =IF(0=$S$118,P150,$O$118+$P$118*P150+$Q$118*P150*P150) -> 0.04 | R150: =IF(OR($S$118=0,O150<=$S$119),O150,$S$119) -> 0.04 | S150: =IF(0=$S$118,R150*1.1,$O$119+$P$119*R150+$Q$119*R150*R150) -> 0.044 | T150: =IF(OR($S$118=0,O150<=$S$120),O150,$S$120) -> 0.04 | U150: =IF(0=$S$118,T150*1.2,$O$120+$P$120*T150+$Q$120*T150*T150) -> 0.048 | V150: =IF(OR($S$118=0,O150<=$S$135),O150,$S$121) -> 0.04 | W150: =IF(0=$S$118,V150*1.3,$O$121+$P$121*V150+$Q$121*V150*V150) -> 0.052 | X150: =IF(OR($S$118=0,O150<=$S$122),O150,$S$122) -> 0.04 | Y150: =IF(0=$S$118,X150*1.4,$O$122+$P$122*X150+$Q$122*X150*X150) -> 0.056
O151: 0.06 | P151: =IF(O151<=$S$118,O151,$S$118) -> 0 | Q151: =$O$118+$P$118*P151+$Q$118*P151*P151 -> 0 | R151: =IF(O151<=$S$119,O151,$S$119) -> 0 | S151: =$O$119+$P$119*R151+$Q$119*R151*R151 -> 0 | T151: =IF(O151<=$S$120,O151,$S$120) -> 0 | U151: =$O$120+$P$120*T151+$Q$120*T151*T151 -> 0 | V151: =IF(O151<=$S$135,O151,$S$121) -> 0 | W151: =$O$121+$P$121*V151+$Q$121*V151*V151 -> 0 | X151: =IF(O151<=$S$122,O151,$S$122) -> 0 | Y151: =$O$122+$P$122*X151+$Q$122*X151*X151 -> 0
O152: 0.08 | P152: 0 | Q152: 0 | R152: 0 | S152: 0 | T152: 0 | U152: 0 | V152: 0 | W152: 0 | X152: 0 | Y152: 0
O153: 0.1 | P153: 0 | Q153: 0 | R153: 0 | S153: 0 | T153: 0 | U153: 0 | V153: 0 | W153: 0 | X153: 0 | Y153: 0
O154: 0.12 | P154: 0 | Q154: 0 | R154: 0 | S154: 0 | T154: 0 | U154: 0 | V154: 0 | W154: 0 | X154: 0 | Y154: 0
O155: 0.14 | P155: 0 | Q155: 0 | R155: 0 | S155: 0 | T155: 0 | U155: 0 | V155: 0 | W155: 0 | X155: 0 | Y155: 0
O156: 0.16 | P156: 0 | Q156: 0 | R156: 0 | S156: 0 | T156: 0 | U156: 0 | V156: 0 | W156: 0 | X156: 0 | Y156: 0
O157: 0.18 | P157: 0 | Q157: 0 | R157: 0 | S157: 0 | T157: 0 | U157: 0 | V157: 0 | W157: 0 | X157: 0 | Y157: 0
O158: 0.2 | P158: 0 | Q158: 0 | R158: 0 | S158: 0 | T158: 0 | U158: 0 | V158: 0 | W158: 0 | X158: 0 | Y158: 0
O159: 0.22 | P159: 0 | Q159: 0 | R159: 0 | S159: 0 | T159: 0 | U159: 0 | V159: 0 | W159: 0 | X159: 0 | Y159: 0
O160: 0.24 | P160: 0 | Q160: 0 | R160: 0 | S160: 0 | T160: 0 | U160: 0 | V160: 0 | W160: 0 | X160: 0 | Y160: 0
O161: 0.26 | P161: 0 | Q161: 0 | R161: 0 | S161: 0 | T161: 0 | U161: 0 | V161: 0 | W161: 0 | X161: 0 | Y161: 0
O162: 0.28 | P162: 0 | Q162: 0 | R162: 0 | S162: 0 | T162: 0 | U162: 0 | V162: 0 | W162: 0 | X162: 0 | Y162: 0
O163: 0.3 | P163: 0 | Q163: 0 | R163: 0 | S163: 0 | T163: 0 | U163: 0 | V163: 0 | W163: 0 | X163: 0 | Y163: 0
O164: 0.32 | P164: 0 | Q164: 0 | R164: 0 | S164: 0 | T164: 0 | U164: 0 | V164: 0 | W164: 0 | X164: 0 | Y164: 0
O165: 0.34 | P165: 0 | Q165: 0 | R165: 0 | S165: 0 | T165: 0 | U165: 0 | V165: 0 | W165: 0 | X165: 0 | Y165: 0
O166: 0.36 | P166: 0 | Q166: 0 | R166: 0 | S166: 0 | T166: 0 | U166: 0 | V166: 0 | W166: 0 | X166: 0 | Y166: 0
O167: 0.38 | P167: 0 | Q167: 0 | R167: 0 | S167: 0 | T167: 0 | U167: 0 | V167: 0 | W167: 0 | X167: 0 | Y167: 0
O168: 0.4 | P168: 0 | Q168: 0 | R168: 0 | S168: 0 | T168: 0 | U168: 0 | V168: 0 | W168: 0 | X168: 0 | Y168: 0
O169: 0.42 | P169: 0 | Q169: 0 | R169: 0 | S169: 0 | T169: 0 | U169: 0 | V169: 0 | W169: 0 | X169: 0 | Y169: 0
O170: 0.44 | P170: 0 | Q170: 0 | R170: 0 | S170: 0 | T170: 0 | U170: 0 | V170: 0 | W170: 0 | X170: 0 | Y170: 0
O171: 0.46 | P171: 0 | Q171: 0 | R171: 0 | S171: 0 | T171: 0 | U171: 0 | V171: 0 | W171: 0 | X171: 0 | Y171: 0
O172: 0.48 | P172: 0 | Q172: 0 | R172: 0 | S172: 0 | T172: 0 | U172: 0 | V172: 0 | W172: 0 | X172: 0 | Y172: 0
O173: 0.5 | P173: 0 | Q173: 0 | R173: 0 | S173: 0 | T173: 0 | U173: 0 | V173: 0 | W173: 0 | X173: 0 | Y173: 0
O174: 0.52 | P174: 0 | Q174: 0 | R174: 0 | S174: 0 | T174: 0 | U174: 0 | V174: 0 | W174: 0 | X174: 0 | Y174: 0
O175: 0.54 | P175: 0 | Q175: 0 | R175: 0 | S175: 0 | T175: 0 | U175: 0 | V175: 0 | W175: 0 | X175: 0 | Y175: 0
O176: 0.56 | P176: 0 | Q176: 0 | R176: 0 | S176: 0 | T176: 0 | U176: 0 | V176: 0 | W176: 0 | X176: 0 | Y176: 0
O177: 0.58 | P177: 0 | Q177: 0 | R177: 0 | S177: 0 | T177: 0 | U177: 0 | V177: 0 | W177: 0 | X177: 0 | Y177: 0
O178: 0.6 | P178: 0 | Q178: 0 | R178: 0 | S178: 0 | T178: 0 | U178: 0 | V178: 0 | W178: 0 | X178: 0 | Y178: 0

Sheet AX01-MSZ (0)
B3: Plattendruckversuch nach MSZ2509/3
C4: Prüfinstitut: | D4: =IF('Statistik stat'!D1="","",'Statistik stat'!D1) ->  | I4: Datensatz: | J4: =_Datensatznummer -> 0
C5: Auftraggeber: | D5: =IF('Statistik stat'!D5="","",'Statistik stat'!D5) ->  | I5: Kartennummer: | J5: =_Kartennummer -> 0
C6: Vorhaben/Auftrag: | D6: =IF('Statistik stat'!D6="","",'Statistik stat'!D6) ->  | I6: Versuchsbeginn: | J6: =_MessDatum -> 00:00:00
C7: Prüftiefe: | D7: =IF('Statistik stat'!D7="","",'Statistik stat'!D7) ->  | I7: Versuchsende: | J7: =_MessDatum1 -> 00:00:00
C8: Schicht: | D8: =IF('Statistik stat'!D8="","",'Statistik stat'!D8) ->  | I8: Gerätenummer: | J8: =_Geraetenummer -> 0
C9: Bemerkungen: | D9: =IF('Statistik stat'!D9="","",'Statistik stat'!D9) ->  | I9: Plattendurchmesser: | J9: =_PlattenDurchmesser -> 0
C10: Witterung/Temp.: | D10: =IF('Statistik stat'!D10="","",'Statistik stat'!D10) ->  | I10: Hebelverhältnis: | J10: =_Hebelarm -> 1:0.00
C11: Prüfpersonal: | D11: =IF('Statistik stat'!D11="","",'Statistik stat'!D11) ->  | I11: =IF(_Tilt_mm="","","Verkippung des Plattenrandes:") ->  | J11: =IF(_Tilt_mm="","",_Tilt_mm) -> 
C12: Ausrüstung: | D12: Anix GmbH, indukt. Wegsensor 15mm, elektron. Kraftsensor 100kN | I12: =IF(_Lat="","","Lat.:") -> 
I13: =IF(_Lon="","","Lon.:") -> 
G14: =IF(_cZone="","","UTM:") -> 
B15: Nr. | C15: Spannung so [MN/m²] | D15: Setzung s [mm] | E15: Zeit t [s]
B16: Erstbelastung
C17: 0.0000 | D17: 0.01
B18: Entlastung
C19: 0.0010 | D19: 0.02
B20: Zweitbelastung
C21: 0.0020 | D21: 0.03
B22: 2.Entlastung
C23: 0.0030 | D23: 0.04
B24: Drittbelastung
C25: 0.0040 | D25: 0.05
G45: Ergebnisse | H45: Erstbelastung | I45: Zweitbelastung | J45: Drittbelastung
G46: somax [MN/m²] | H46: =S128 -> 0.000 | I46: =IF(S130<>0,S130,"") ->  | J46: =IF(S132<>0,S132,"") -> 
G47: E [MN/m²] | H47: =T128 -> 0.0 | I47: =IF(T130<>0,T130,"") ->  | J47: =IF(T132<>0,T132,"") -> 
G48: E2/E1: | H48: =IF(OR(H47=0,I47=""),"",I47/H47) -> 
G51: =IF(H51<>"","Bettungsmodul:","") ->  | I51: =IF(H51<>"","MN/m³","") -> 
N101: 0: ME
N106: 1: ME
N111: 2: ME
N116: 3: ME
N121: 4: ME
O126: Parameter
O127: a0 | P127: a1 | Q127: a2 | R127: Index | S127: smax | T127: Ev | U127: k1 | V127: k2 | W127: a
O135: Lat
O136: Lon
O137: Plattendurchmesser:
O138: Hebelverhältnis:
O139: Datum:
O140: Datum (Ende):
O141: Gerätenummer:
O142: Datensatznummer:
O143: Kartennummer:
O144: Stepwidth:
O145: Tilt:
O146: Mejne vrednosti
O147: Ev2 | P147: Ev2/Ev1
O148: 45 | P148: 2.2
O149: 80 | P149: 2.3
O150: 100 | P150: 2.5
O151: 120 | P151: 2.6
O152: 150
O153: 180
O155: Krivulje
O156: Sigma | Q156: Erstbelastung | S156: Entlastung | U156: Zweitbelastung | W156: 2. Entlastung | Y156: Drittbelastung
O157: 0 | P157: =O157 -> 0 | Q157: =IF(0=$S$128,P157,$O$128+$P$128*P157+$Q$128*P157*P157) -> 0 | R157: =IF(OR($S$128=0,O157<=$S$129),O157,$S$129) -> 0 | S157: =IF(0=$S$128,R157*1.1,$O$129+$P$129*R157+$Q$129*R157*R157) -> 0 | T157: =IF(OR($S$128=0,O157<=$S$130),O157,$S$130) -> 0 | U157: =IF(0=$S$128,T157*1.2,$O$130+$P$130*T157+$Q$130*T157*T157) -> 0 | V157: =IF(OR($S$128=0,O157<=$S$145),O157,$S$131) -> 0 | W157: =IF(0=$S$128,V157*1.3,$O$131+$P$131*V157+$Q$131*V157*V157) -> 0 | X157: =IF(OR($S$128=0,O157<=$S$132),O157,$S$132) -> 0 | Y157: =IF(0=$S$128,X157*1.4,$O$132+$P$132*X157+$Q$132*X157*X157) -> 0
O158: 0.02 | P158: =O158 -> 0.02 | Q158: =IF(0=$S$128,P158,$O$128+$P$128*P158+$Q$128*P158*P158) -> 0.02 | R158: =IF(OR($S$128=0,O158<=$S$129),O158,$S$129) -> 0.02 | S158: =IF(0=$S$128,R158*1.1,$O$129+$P$129*R158+$Q$129*R158*R158) -> 0.022 | T158: =IF(OR($S$128=0,O158<=$S$130),O158,$S$130) -> 0.02 | U158: =IF(0=$S$128,T158*1.2,$O$130+$P$130*T158+$Q$130*T158*T158) -> 0.024 | V158: =IF(OR($S$128=0,O158<=$S$145),O158,$S$131) -> 0.02 | W158: =IF(0=$S$128,V158*1.3,$O$131+$P$131*V158+$Q$131*V158*V158) -> 0.026 | X158: =IF(OR($S$128=0,O158<=$S$132),O158,$S$132) -> 0.02 | Y158: =IF(0=$S$128,X158*1.4,$O$132+$P$132*X158+$Q$132*X158*X158) -> 0.028
O159: 0.04 | P159: =O159 -> 0.04 | Q159: =IF(0=$S$128,P159,$O$128+$P$128*P159+$Q$128*P159*P159) -> 0.04 | R159: =IF(OR($S$128=0,O159<=$S$129),O159,$S$129) -> 0.04 | S159: =IF(0=$S$128,R159*1.1,$O$129+$P$129*R159+$Q$129*R159*R159) -> 0.044 | T159: =IF(OR($S$128=0,O159<=$S$130),O159,$S$130) -> 0.04 | U159: =IF(0=$S$128,T159*1.2,$O$130+$P$130*T159+$Q$130*T159*T159) -> 0.048 | V159: =IF(OR($S$128=0,O159<=$S$145),O159,$S$131) -> 0.04 | W159: =IF(0=$S$128,V159*1.3,$O$131+$P$131*V159+$Q$131*V159*V159) -> 0.052 | X159: =IF(OR($S$128=0,O159<=$S$132),O159,$S$132) -> 0.04 | Y159: =IF(0=$S$128,X159*1.4,$O$132+$P$132*X159+$Q$132*X159*X159) -> 0.056
O160: 0.06 | P160: =IF(O160<=$S$128,O160,$S$128) -> 0 | Q160: =$O$128+$P$128*P160+$Q$128*P160*P160 -> 0 | R160: =IF(O160<=$S$129,O160,$S$129) -> 0 | S160: =$O$129+$P$129*R160+$Q$129*R160*R160 -> 0 | T160: =IF(O160<=$S$130,O160,$S$130) -> 0 | U160: =$O$130+$P$130*T160+$Q$130*T160*T160 -> 0 | V160: =IF(O160<=$S$145,O160,$S$131) -> 0 | W160: =$O$131+$P$131*V160+$Q$131*V160*V160 -> 0 | X160: =IF(O160<=$S$132,O160,$S$132) -> 0 | Y160: =$O$132+$P$132*X160+$Q$132*X160*X160 -> 0
O161: 0.08 | P161: 0 | Q161: 0 | R161: 0 | S161: 0 | T161: 0 | U161: 0 | V161: 0 | W161: 0 | X161: 0 | Y161: 0
O162: 0.1 | P162: 0 | Q162: 0 | R162: 0 | S162: 0 | T162: 0 | U162: 0 | V162: 0 | W162: 0 | X162: 0 | Y162: 0
O163: 0.12 | P163: 0 | Q163: 0 | R163: 0 | S163: 0 | T163: 0 | U163: 0 | V163: 0 | W163: 0 | X163: 0 | Y163: 0
O164: 0.14 | P164: 0 | Q164: 0 | R164: 0 | S164: 0 | T164: 0 | U164: 0 | V164: 0 | W164: 0 | X164: 0 | Y164: 0
O165: 0.16 | P165: 0 | Q165: 0 | R165: 0 | S165: 0 | T165: 0 | U165: 0 | V165: 0 | W165: 0 | X165: 0 | Y165: 0
O166: 0.18 | P166: 0 | Q166: 0 | R166: 0 | S166: 0 | T166: 0 | U166: 0 | V166: 0 | W166: 0 | X166: 0 | Y166: 0
O167: 0.2 | P167: 0 | Q167: 0 | R167: 0 | S167: 0 | T167: 0 | U167: 0 | V167: 0 | W167: 0 | X167: 0 | Y167: 0
O168: 0.22 | P168: 0 | Q168: 0 | R168: 0 | S168: 0 | T168: 0 | U168: 0 | V168: 0 | W168: 0 | X168: 0 | Y168: 0
O169: 0.24 | P169: 0 | Q169: 0 | R169: 0 | S169: 0 | T169: 0 | U169: 0 | V169: 0 | W169: 0 | X169: 0 | Y169: 0
O170: 0.26 | P170: 0 | Q170: 0 | R170: 0 | S170: 0 | T170: 0 | U170: 0 | V170: 0 | W170: 0 | X170: 0 | Y170: 0
O171: 0.28 | P171: 0 | Q171: 0 | R171: 0 | S171: 0 | T171: 0 | U171: 0 | V171: 0 | W171: 0 | X171: 0 | Y171: 0
O172: 0.3 | P172: 0 | Q172: 0 | R172: 0 | S172: 0 | T172: 0 | U172: 0 | V172: 0 | W172: 0 | X172: 0 | Y172: 0
O173: 0.32 | P173: 0 | Q173: 0 | R173: 0 | S173: 0 | T173: 0 | U173: 0 | V173: 0 | W173: 0 | X173: 0 | Y173: 0
O174: 0.34 | P174: 0 | Q174: 0 | R174: 0 | S174: 0 | T174: 0 | U174: 0 | V174: 0 | W174: 0 | X174: 0 | Y174: 0
O175: 0.36 | P175: 0 | Q175: 0 | R175: 0 | S175: 0 | T175: 0 | U175: 0 | V175: 0 | W175: 0 | X175: 0 | Y175: 0
O176: 0.38 | P176: 0 | Q176: 0 | R176: 0 | S176: 0 | T176: 0 | U176: 0 | V176: 0 | W176: 0 | X176: 0 | Y176: 0
O177: 0.4 | P177: 0 | Q177: 0 | R177: 0 | S177: 0 | T177: 0 | U177: 0 | V177: 0 | W177: 0 | X177: 0 | Y177: 0
O178: 0.42 | P178: 0 | Q178: 0 | R178: 0 | S178: 0 | T178: 0 | U178: 0 | V178: 0 | W178: 0 | X178: 0 | Y178: 0
O179: 0.44 | P179: 0 | Q179: 0 | R179: 0 | S179: 0 | T179: 0 | U179: 0 | V179: 0 | W179: 0 | X179: 0 | Y179: 0
O180: 0.46 | P180: 0 | Q180: 0 | R180: 0 | S180: 0 | T180: 0 | U180: 0 | V180: 0 | W180: 0 | X180: 0 | Y180: 0
O181: 0.48 | P181: 0 | Q181: 0 | R181: 0 | S181: 0 | T181: 0 | U181: 0 | V181: 0 | W181: 0 | X181: 0 | Y181: 0
O182: 0.5 | P182: 0 | Q182: 0 | R182: 0 | S182: 0 | T182: 0 | U182: 0 | V182: 0 | W182: 0 | X182: 0 | Y182: 0
O183: 0.52 | P183: 0 | Q183: 0 | R183: 0 | S183: 0 | T183: 0 | U183: 0 | V183: 0 | W183: 0 | X183: 0 | Y183: 0
O184: 0.54 | P184: 0 | Q184: 0 | R184: 0 | S184: 0 | T184: 0 | U184: 0 | V184: 0 | W184: 0 | X184: 0 | Y184: 0
O185: 0.56 | P185: 0 | Q185: 0 | R185: 0 | S185: 0 | T185: 0 | U185: 0 | V185: 0 | W185: 0 | X185: 0 | Y185: 0
O186: 0.58 | P186: 0 | Q186: 0 | R186: 0 | S186: 0 | T186: 0 | U186: 0 | V186: 0 | W186: 0 | X186: 0 | Y186: 0
O187: 0.6 | P187: 0 | Q187: 0 | R187: 0 | S187: 0 | T187: 0 | U187: 0 | V187: 0 | W187: 0 | X187: 0 | Y187: 0

Sheet AX01-SVV (0)
B3: Plate load test SVV 15.328
C4: Institute: | D4: =IF('Statistik stat'!D1="","",'Statistik stat'!D1) ->  | H4: Record number: | I4: =_Datensatznummer -> 0
C5: Client: | D5: =IF('Statistik stat'!D5="","",'Statistik stat'!D5) ->  | H5: Card number.: | I5: =_Kartennummer -> 0
C6: Project: | D6: =IF('Statistik stat'!D6="","",'Statistik stat'!D6) ->  | H6: Start of test: | I6: =_MessDatum -> 00:00:00
C7: Test depth: | D7: =IF('Statistik stat'!D7="","",'Statistik stat'!D7) ->  | H7: End of test: | I7: =_MessDatum1 -> 00:00:00
C8: Layer: | D8: =IF('Statistik stat'!D8="","",'Statistik stat'!D8) ->  | H8: Device number: | I8: =_Geraetenummer -> 0
C9: Remarks: | D9: =IF('Statistik stat'!D9="","",'Statistik stat'!D9) ->  | H9: Ø-Plate: | I9: =_PlattenDurchmesser -> 0
C10: Weather/Temp.: | D10: =IF('Statistik stat'!D10="","",'Statistik stat'!D10) ->  | H10: Lever ratio: | I10: =_Hebelarm -> 1:0.00
C11: Operator: | D11: =IF('Statistik stat'!D11="","",'Statistik stat'!D11) ->  | H11: =IF(_Tilt_mm="","","max plate tilt:") ->  | I11: =IF(_Tilt_mm="","",_Tilt_mm) -> 
C12: Equipment: | D12: Ax01a, Anix GmbH | H12: =IF(_cLat="","","Lat.:") -> 
H13: =IF(_cLon="","","Lon.:") -> 
F14: =IF(_cZone="","","UTM:") -> 
B15: Nr. | C15: load so [MN/m²] | D15: deflection s [mm] | E15: time t [s]
B16: first loading
B18: =IF(_MessTab2="","","second loading") -> 
G35: E1: | H35: =IF(S96<>0,S96,"") ->  | I35: MN/m²
G37: E2: | H37: =IF(S98<>0,S98,"") ->  | I37: MN/m²
G39: E2/E1: | H39: =IF(S96<>0,S98/S96,"") -> 
G42: Alternate E2 results
G43: load interval (kN/m²) | H43: E2 (MN/m²) | I43: E2/E1
G44: =IF(AND(N78<>"",N77<>""),CONCATENATE(N77/10,"-",P77/10),"") ->  | H44: =IF(AND(O77<>"",O78<>""),O77,"") ->  | I44: =IF(H44<>"",H44/$H$35,"") -> 
G45: =IF(AND(N79<>"",N78<>""),CONCATENATE(N78/10,"-",P78/10),"") ->  | H45: =IF(AND(O78<>"",O79<>""),O78,"") ->  | I45: =IF(H45<>"",H45/$H$35,"") -> 
H46: =IF(AND(O79<>"",O80<>""),O79,"") -> 
M67: 0: ME
M72: 1: ME
M77: 2: ME
M82: 3: ME
M87: 4: ME
N94: Parameter
N95: a0 | O95: a1 | P95: a2 | Q95: Index | R95: smax | S95: Ev | T95: k1 | U95: k2 | V95: a
N101: Lat:
N102: Lon:
N103: Plattendurchmesser:
N104: Hebelverhältnis:
N105: Datum:
N106: Datum (Ende):
N107: Gerätenummer:
N108: Datensatznummer:
N109: Kartennummer:
N110: Stepwidth:
N111: Kippweg Plattenrand:
N112: Grenzwerte
N113: Ev2 | O113: Ev2/Ev1
N114: 45 | O114: 2.2
N115: 80 | O115: 2.3
N116: 100 | O116: 2.5
N117: 120 | O117: 2.6
N118: 150
N119: 180
N121: Kurven
N122: Sigma | P122: _Erstbelastung_ | R122: _Entlastung_ | T122: _Zweitbelastung_ | V122: _Entlastung_ | X122: _Drittbelastung_
N123: 0 | O123: =IF(N123<=$R$96,N123,$R$96) -> 0 | P123: =$N$96+$O$96*O123+$P$96*O123*O123 -> 0 | Q123: =IF(N123<=$R$97,N123,$R$97) -> 0 | R123: =$N$97+$O$97*Q123+$P$97*Q123*Q123 -> 0 | S123: =IF(N123<=$R$98,N123,$R$98) -> 0 | T123: =$N$98+$O$98*S123+$P$98*S123*S123 -> 0 | U123: =IF(N123<=$R$99,N123,$R$99) -> 0 | V123: =$N$99+$O$99*U123+$P$99*U123*U123 -> 0 | W123: =IF(N123<=$R$100,N123,$R$100) -> 0 | X123: =$N$100+$O$100*W123+$P$100*W123*W123 -> 0
N124: 0.02 | O124: =IF(N124<=$R$96,N124,$R$96) -> 0 | P124: =$N$96+$O$96*O124+$P$96*O124*O124 -> 0 | Q124: =IF(N124<=$R$97,N124,$R$97) -> 0 | R124: =$N$97+$O$97*Q124+$P$97*Q124*Q124 -> 0 | S124: =IF(N124<=$R$98,N124,$R$98) -> 0 | T124: =$N$98+$O$98*S124+$P$98*S124*S124 -> 0 | U124: =IF(N124<=$R$99,N124,$R$99) -> 0 | V124: =$N$99+$O$99*U124+$P$99*U124*U124 -> 0 | W124: =IF(N124<=$R$100,N124,$R$100) -> 0 | X124: =$N$100+$O$100*W124+$P$100*W124*W124 -> 0
N125: 0.04 | O125: 0 | P125: 0 | Q125: 0 | R125: 0 | S125: 0 | T125: 0 | U125: 0 | V125: 0 | W125: 0 | X125: 0
N126: 0.06 | O126: 0 | P126: 0 | Q126: 0 | R126: 0 | S126: 0 | T126: 0 | U126: 0 | V126: 0 | W126: 0 | X126: 0
N127: 0.08 | O127: 0 | P127: 0 | Q127: 0 | R127: 0 | S127: 0 | T127: 0 | U127: 0 | V127: 0 | W127: 0 | X127: 0
N128: 0.1 | O128: 0 | P128: 0 | Q128: 0 | R128: 0 | S128: 0 | T128: 0 | U128: 0 | V128: 0 | W128: 0 | X128: 0
N129: 0.12 | O129: 0 | P129: 0 | Q129: 0 | R129: 0 | S129: 0 | T129: 0 | U129: 0 | V129: 0 | W129: 0 | X129: 0
N130: 0.14 | O130: 0 | P130: 0 | Q130: 0 | R130: 0 | S130: 0 | T130: 0 | U130: 0 | V130: 0 | W130: 0 | X130: 0
N131: 0.16 | O131: 0 | P131: 0 | Q131: 0 | R131: 0 | S131: 0 | T131: 0 | U131: 0 | V131: 0 | W131: 0 | X131: 0
N132: 0.18 | O132: 0 | P132: 0 | Q132: 0 | R132: 0 | S132: 0 | T132: 0 | U132: 0 | V132: 0 | W132: 0 | X132: 0
N133: 0.2 | O133: 0 | P133: 0 | Q133: 0 | R133: 0 | S133: 0 | T133: 0 | U133: 0 | V133: 0 | W133: 0 | X133: 0
N134: 0.22 | O134: 0 | P134: 0 | Q134: 0 | R134: 0 | S134: 0 | T134: 0 | U134: 0 | V134: 0 | W134: 0 | X134: 0
N135: 0.24 | O135: 0 | P135: 0 | Q135: 0 | R135: 0 | S135: 0 | T135: 0 | U135: 0 | V135: 0 | W135: 0 | X135: 0
N136: 0.26 | O136: 0 | P136: 0 | Q136: 0 | R136: 0 | S136: 0 | T136: 0 | U136: 0 | V136: 0 | W136: 0 | X136: 0
N137: 0.28 | O137: 0 | P137: 0 | Q137: 0 | R137: 0 | S137: 0 | T137: 0 | U137: 0 | V137: 0 | W137: 0 | X137: 0
N138: 0.3 | O138: 0 | P138: 0 | Q138: 0 | R138: 0 | S138: 0 | T138: 0 | U138: 0 | V138: 0 | W138: 0 | X138: 0
N139: 0.32 | O139: 0 | P139: 0 | Q139: 0 | R139: 0 | S139: 0 | T139: 0 | U139: 0 | V139: 0 | W139: 0 | X139: 0
N140: 0.34 | O140: 0 | P140: 0 | Q140: 0 | R140: 0 | S140: 0 | T140: 0 | U140: 0 | V140: 0 | W140: 0 | X140: 0
N141: 0.36 | O141: 0 | P141: 0 | Q141: 0 | R141: 0 | S141: 0 | T141: 0 | U141: 0 | V141: 0 | W141: 0 | X141: 0
N142: 0.38 | O142: 0 | P142: 0 | Q142: 0 | R142: 0 | S142: 0 | T142: 0 | U142: 0 | V142: 0 | W142: 0 | X142: 0
N143: 0.4 | O143: 0 | P143: 0 | Q143: 0 | R143: 0 | S143: 0 | T143: 0 | U143: 0 | V143: 0 | W143: 0 | X143: 0
N144: 0.42 | O144: 0 | P144: 0 | Q144: 0 | R144: 0 | S144: 0 | T144: 0 | U144: 0 | V144: 0 | W144: 0 | X144: 0
N145: 0.44 | O145: 0 | P145: 0 | Q145: 0 | R145: 0 | S145: 0 | T145: 0 | U145: 0 | V145: 0 | W145: 0 | X145: 0
N146: 0.46 | O146: 0 | P146: 0 | Q146: 0 | R146: 0 | S146: 0 | T146: 0 | U146: 0 | V146: 0 | W146: 0 | X146: 0
N147: 0.48 | O147: 0 | P147: 0 | Q147: 0 | R147: 0 | S147: 0 | T147: 0 | U147: 0 | V147: 0 | W147: 0 | X147: 0
N148: 0.5 | O148: 0 | P148: 0 | Q148: 0 | R148: 0 | S148: 0 | T148: 0 | U148: 0 | V148: 0 | W148: 0 | X148: 0
N149: 0.52 | O149: 0 | P149: 0 | Q149: 0 | R149: 0 | S149: 0 | T149: 0 | U149: 0 | V149: 0 | W149: 0 | X149: 0
N150: 0.54 | O150: 0 | P150: 0 | Q150: 0 | R150: 0 | S150: 0 | T150: 0 | U150: 0 | V150: 0 | W150: 0 | X150: 0
N151: 0.56 | O151: 0 | P151: 0 | Q151: 0 | R151: 0 | S151: 0 | T151: 0 | U151: 0 | V151: 0 | W151: 0 | X151: 0
N152: 0.58 | O152: 0 | P152: 0 | Q152: 0 | R152: 0 | S152: 0 | T152: 0 | U152: 0 | V152: 0 | W152: 0 | X152: 0
N153: 0.6 | O153: 0 | P153: 0 | Q153: 0 | R153: 0 | S153: 0 | T153: 0 | U153: 0 | V153: 0 | W153: 0 | X153: 0

Sheet AX01 (0)
B3: =CONCATENATE("Plattendruckversuch nach DIN 18134-",TEXT(J9,"0")) -> Plattendruckversuch nach DIN 18134-0
C4: Prüfinstitut: | D4: =IF('Statistik stat'!D1="","",'Statistik stat'!D1) ->  | I4: Datensatznummer: | J4: =_Datensatznummer -> 0
C5: Auftraggeber: | D5: =IF('Statistik stat'!D5="","",'Statistik stat'!D5) ->  | I5: Kartennummer: | J5: =_Kartennummer -> 0
C6: Bauvorhaben: | D6: =IF('Statistik stat'!D6="","",'Statistik stat'!D6) ->  | I6: Versuchsbeginn: | J6: =_MessDatum -> 00:00:00
C7: Prüftiefe: | D7: =IF('Statistik stat'!D7="","",'Statistik stat'!D7) ->  | I7: Versuchsende: | J7: =_MessDatum1 -> 00:00:00
C8: Schicht: | D8: =IF('Statistik stat'!D8="","",'Statistik stat'!D8) ->  | I8: Gerätenummer: | J8: =_Geraetenummer -> 0
C9: Bemerkungen: | D9: =IF('Statistik stat'!D9="","",'Statistik stat'!D9) ->  | I9: Plattendurchmesser: | J9: =_PlattenDurchmesser -> 0
C10: Witterung/Temp.: | D10: =IF('Statistik stat'!D10="","",'Statistik stat'!D10) ->  | I10: Hebelverhältnis: | J10: =_Hebelarm -> 1:0.00
C11: Bearbeiter: | D11: =IF('Statistik stat'!D11="","",'Statistik stat'!D11) ->  | I11: =IF(_Tilt_mm="","","Kippweg Plattenrand:") ->  | J11: =IF(_Tilt_mm="","",_Tilt_mm) -> 
C12: Ausrüstung: | D12: Hersteller Anix GmbH, induktiver Wegaufnehmer 15mm, elektr. Kraftsensor 100kN | I12: =IF(_cLat="","","Lat.:") -> 
I13: =IF(_cLon="","","Lon.:") -> 
G14: =IF(_cZone="","","UTM:") -> 
B15: Nr. | C15: Spannung so [MN/m²] | D15: Setzung s [mm]
B16: Erstbelastung
C17: 0.0000 | D17: 0.01
B18: Entlastung
C19: 0.0000 | D19: 0.02
B20: Zweitbelastung
C21: 0.0000 | D21: 0.03
B22: 2.Entlastung
C23: 0.0000 | D23: 0.04
B24: Drittbelastung
C25: 0.0000 | D25: 0.05
G40: Ergebnisse
H41: Ist-Werte | I41: Sollwerte | J41: Bewertung
G42: s1max [MN/m²] | H42: =R82 -> 0.0000
G43: Ev1 [MN/m²] | H43: =S82 -> 0.00
G44: Ev2 [MN/m²] | H44: =S84 -> 0.00 | I44: ='Statistik stat'!D12 -> 45 | J44: =IF(H44="","",IF(H44>=I44,"OK","ungültig.")) -> ungültig.
G45: Ev2/Ev1: | H45: =IF(H43=0,"",H44/H43) ->  | I45: ='Statistik stat'!D13 -> 2.2 | J45: =IF(H45="","",IF(H45<=I45,"OK","ungültig.")) -> 
G46: Ev3 [MN/m²] | H46: =IF(S86<>"",S86,"") -> 
G47: Ev3/Ev1: | H47: =IF(OR(H43=0,H46=""),"",H46/H43) -> 
G48: =IF(T79<>"","Bettungsmodul:","") ->  | H48: =IF(T79<>"",T79,"") ->  | I48: =IF(T79<>"","MN/m³","") -> 
G49: remarks:
N78: sks | O78: sks korr. | P78: p | Q78: q | R78: p/2 | S78: s1,25 | T78: k
N79: 1.25 mm | O79: =IF(O82="","",_Parameter0+N79) ->  | P79: =IF(OR(P82=0,O82=""),"",O82/P82) ->  | Q79: =IF(OR(P82=0,P82=""),"",(_Parameter0-O79)/P82) ->  | R79: =IF(P79="","",P79/2) ->  | S79: =IF(P82=0,N79/O82,IF(R79="","",IF(P82<0,-R79-SQRT(R79^2-Q79),-R79+SQRT(R79^2-Q79)))) ->  | T79: =IF(ISNUMBER(S79),IF(_PlattenDurchmesser<>300,IF(S79="","",1000*S79/(N79*762/_PlattenDurchmesser)),IF(S79="","",1000*S79/N79/2.22)),"") -> 
N80: Parameter
N81: a0 | O81: a1 | P81: a2 | Q81: Index | R81: smax | S81: Ev | T81: k1 | U81: k2 | V81: a
N86: Sprache: | O86: 0
N87: Lat:
N88: Lon:
N89: Plattendurchmesser:
N90: Hebelverhältnis:
N91: Datum:
N92: Datum (Ende):
N93: Gerätenummer:
N94: Datensatznummer:
N95: Kartennummer:
N96: Stepwidth:
N97: Kippweg Plattenrand:
N98: Grenzwerte
N99: Ev2 | O99: Ev2/Ev1
N100: 45 | O100: 2.2
N101: 80 | O101: 2.3
N102: 100 | O102: 2.5
N103: 120 | O103: 2.6
N104: 150
N105: 180
N107: Krivulje
N108: Sigma | P108: Erstbelastung | R108: Entlastung | T108: Zweitbelastung | V108: 2.Entlastung | X108: Drittbelastung
N109: 0 | O109: =IF(OR($R$82=0,N109<=$R$82),N109,$R$82) -> 0 | P109: =IF(0=$R$82,O109,$N$82+$O$82*O109+$P$82*O109*O109) -> 0 | Q109: =IF(OR($R$82=0,N109<=$R$83),N109,$R$83) -> 0 | R109: =IF(0=$R$82,1.1*Q109,$N$83+$O$83*Q109+$P$83*Q109*Q109) -> 0 | S109: =IF(OR($R$82=0,N109<=$R$84),N109,$R$84) -> 0 | T109: =IF(0=$R$82,1.2*S109,$N$84+$O$84*S109+$P$84*S109*S109) -> 0 | U109: =IF(OR($R$82=0,N109<=$R$85),N109,$R$85) -> 0 | V109: =IF(0=$R$82,1.3*U109,$N$85+$O$85*U109+$P$85*U109*U109) -> 0 | W109: =IF(OR($R$82=0,N109<=$R$86),N109,$R$86) -> 0 | X109: =IF(0=$R$82,1.4*W109,$N$87+$O$87*W109+$P$86*W109*W109) -> 0
N110: 0.02 | O110: =IF(OR($R$82=0,N110<=$R$82),N110,$R$82) -> 0.02 | P110: =IF(0=$R$82,O110,$N$82+$O$82*O110+$P$82*O110*O110) -> 0.02 | Q110: =IF(OR($R$82=0,N110<=$R$83),N110,$R$83) -> 0.02 | R110: =IF(0=$R$82,1.1*Q110,$N$83+$O$83*Q110+$P$83*Q110*Q110) -> 0.022 | S110: =IF(OR($R$82=0,N110<=$R$84),N110,$R$84) -> 0.02 | T110: =IF(0=$R$82,1.2*S110,$N$84+$O$84*S110+$P$84*S110*S110) -> 0.024 | U110: =IF(OR($R$82=0,N110<=$R$85),N110,$R$85) -> 0.02 | V110: =IF(0=$R$82,1.3*U110,$N$85+$O$85*U110+$P$85*U110*U110) -> 0.026 | W110: =IF(OR($R$82=0,N110<=$R$86),N110,$R$86) -> 0.02 | X110: =IF(0=$R$82,1.4*W110,$N$87+$O$87*W110+$P$86*W110*W110) -> 0.028
N111: 0.04 | O111: =IF(OR($R$82=0,N111<=$R$82),N111,$R$82) -> 0.04 | P111: =IF(0=$R$82,O111,$N$82+$O$82*O111+$P$82*O111*O111) -> 0.04 | Q111: =IF(OR($R$82=0,N111<=$R$83),N111,$R$83) -> 0.04 | R111: =IF(0=$R$82,1.1*Q111,$N$83+$O$83*Q111+$P$83*Q111*Q111) -> 0.044 | S111: =IF(OR($R$82=0,N111<=$R$84),N111,$R$84) -> 0.04 | T111: =IF(0=$R$82,1.2*S111,$N$84+$O$84*S111+$P$84*S111*S111) -> 0.048 | U111: =IF(OR($R$82=0,N111<=$R$85),N111,$R$85) -> 0.04 | V111: =IF(0=$R$82,1.3*U111,$N$85+$O$85*U111+$P$85*U111*U111) -> 0.052 | W111: =IF(OR($R$82=0,N111<=$R$86),N111,$R$86) -> 0.04 | X111: =IF(0=$R$82,1.4*W111,$N$87+$O$87*W111+$P$86*W111*W111) -> 0.056
N112: 0.06 | O112: =IF(N112<=$R$82,N112,$R$82) -> 0 | P112: =$N$82+$O$82*O112+$P$82*O112*O112 -> 0 | Q112: =IF(N112<=$R$83,N112,$R$83) -> 0 | R112: =$N$83+$O$83*Q112+$P$83*Q112*Q112 -> 0 | S112: =IF(N112<=$R$84,N112,$R$84) -> 0 | T112: =$N$84+$O$84*S112+$P$84*S112*S112 -> 0 | U112: =IF(N112<=$R$85,N112,$R$85) -> 0 | V112: =$N$85+$O$85*U112+$P$85*U112*U112 -> 0 | W112: =IF(N112<=$R$86,N112,$R$86) -> 0 | X112: =$N$87+$O$87*W112+$P$86*W112*W112 -> 
N113: 0.08 | O113: 0 | P113: 0 | Q113: 0 | R113: 0 | S113: 0 | T113: 0 | U113: 0 | V113: 0 | W113: 0
N114: 0.1 | O114: =IF(N114<=$R$82,N114,$R$82) -> 0 | P114: =$N$82+$O$82*O114+$P$82*O114*O114 -> 0 | Q114: =IF(N114<=$R$83,N114,$R$83) -> 0 | R114: =$N$83+$O$83*Q114+$P$83*Q114*Q114 -> 0 | S114: =IF(N114<=$R$84,N114,$R$84) -> 0 | T114: =$N$84+$O$84*S114+$P$84*S114*S114 -> 0 | U114: =IF(N114<=$R$85,N114,$R$85) -> 0 | V114: =$N$85+$O$85*U114+$P$85*U114*U114 -> 0 | W114: =IF(N114<=$R$86,N114,$R$86) -> 0 | X114: =$N$87+$O$87*W114+$P$86*W114*W114 -> 
N115: 0.12 | O115: 0 | P115: 0 | Q115: 0 | R115: 0 | S115: 0 | T115: 0 | U115: 0 | V115: 0 | W115: 0
N116: 0.14 | O116: 0 | P116: 0 | Q116: 0 | R116: 0 | S116: 0 | T116: 0 | U116: 0 | V116: 0 | W116: 0
N117: 0.16 | O117: 0 | P117: 0 | Q117: 0 | R117: 0 | S117: 0 | T117: 0 | U117: 0 | V117: 0 | W117: 0
N118: 0.18 | O118: 0 | P118: 0 | Q118: 0 | R118: 0 | S118: 0 | T118: 0 | U118: 0 | V118: 0 | W118: 0
N119: 0.2 | O119: 0 | P119: 0 | Q119: 0 | R119: 0 | S119: 0 | T119: 0 | U119: 0 | V119: 0 | W119: 0
N120: 0.22 | O120: 0 | P120: 0 | Q120: 0 | R120: 0 | S120: 0 | T120: 0 | U120: 0 | V120: 0 | W120: 0
N121: 0.24 | O121: 0 | P121: 0 | Q121: 0 | R121: 0 | S121: 0 | T121: 0 | U121: 0 | V121: 0 | W121: 0
N122: 0.26 | O122: 0 | P122: 0 | Q122: 0 | R122: 0 | S122: 0 | T122: 0 | U122: 0 | V122: 0 | W122: 0
N123: 0.28 | O123: 0 | P123: 0 | Q123: 0 | R123: 0 | S123: 0 | T123: 0 | U123: 0 | V123: 0 | W123: 0
N124: 0.3 | O124: 0 | P124: 0 | Q124: 0 | R124: 0 | S124: 0 | T124: 0 | U124: 0 | V124: 0 | W124: 0
N125: 0.32 | O125: 0 | P125: 0 | Q125: 0 | R125: 0 | S125: 0 | T125: 0 | U125: 0 | V125: 0 | W125: 0
N126: 0.34 | O126: 0 | P126: 0 | Q126: 0 | R126: 0 | S126: 0 | T126: 0 | U126: 0 | V126: 0 | W126: 0
N127: 0.36 | O127: 0 | P127: 0 | Q127: 0 | R127: 0 | S127: 0 | T127: 0 | U127: 0 | V127: 0 | W127: 0
N128: 0.38 | O128: 0 | P128: 0 | Q128: 0 | R128: 0 | S128: 0 | T128: 0 | U128: 0 | V128: 0 | W128: 0
N129: 0.4 | O129: 0 | P129: 0 | Q129: 0 | R129: 0 | S129: 0 | T129: 0 | U129: 0 | V129: 0 | W129: 0
N130: 0.42 | O130: 0 | P130: 0 | Q130: 0 | R130: 0 | S130: 0 | T130: 0 | U130: 0 | V130: 0 | W130: 0
N131: 0.44 | O131: 0 | P131: 0 | Q131: 0 | R131: 0 | S131: 0 | T131: 0 | U131: 0 | V131: 0 | W131: 0
N132: 0.46 | O132: 0 | P132: 0 | Q132: 0 | R132: 0 | S132: 0 | T132: 0 | U132: 0 | V132: 0 | W132: 0
N133: 0.48 | O133: 0 | P133: 0 | Q133: 0 | R133: 0 | S133: 0 | T133: 0 | U133: 0 | V133: 0 | W133: 0
N134: 0.5 | O134: 0 | P134: 0 | Q134: 0 | R134: 0 | S134: 0 | T134: 0 | U134: 0 | V134: 0 | W134: 0
N135: 0.52 | O135: 0 | P135: 0 | Q135: 0 | R135: 0 | S135: 0 | T135: 0 | U135: 0 | V135: 0 | W135: 0
N136: 0.54 | O136: 0 | P136: 0 | Q136: 0 | R136: 0 | S136: 0 | T136: 0 | U136: 0 | V136: 0 | W136: 0
N137: 0.56 | O137: 0 | P137: 0 | Q137: 0 | R137: 0 | S137: 0 | T137: 0 | U137: 0 | V137: 0 | W137: 0
N138: 0.58 | O138: 0 | P138: 0 | Q138: 0 | R138: 0 | S138: 0 | T138: 0 | U138: 0 | V138: 0 | W138: 0
N139: 0.6 | O139: 0 | P139: 0 | Q139: 0 | R139: 0 | S139: 0 | T139: 0 | U139: 0 | V139: 0 | W139: 0
N140: 0.62 | O140: 0 | P140: 0 | Q140: 0 | R140: 0 | S140: 0 | T140: 0 | U140: 0 | V140: 0 | W140: 0
N141: 0.64 | O141: 0 | P141: 0 | Q141: 0 | R141: 0 | S141: 0 | T141: 0 | U141: 0 | V141: 0 | W141: 0
N142: 0.66 | O142: 0 | P142: 0 | Q142: 0 | R142: 0 | S142: 0 | T142: 0 | U142: 0 | V142: 0 | W142: 0
N143: 0.68 | O143: 0 | P143: 0 | Q143: 0 | R143: 0 | S143: 0 | T143: 0 | U143: 0 | V143: 0 | W143: 0
N144: 0.7 | O144: 0 | P144: 0 | Q144: 0 | R144: 0 | S144: 0 | T144: 0 | U144: 0 | V144: 0 | W144: 0
N145: 0.72 | O145: 0 | P145: 0 | Q145: 0 | R145: 0 | S145: 0 | T145: 0 | U145: 0 | V145: 0 | W145: 0
N146: 0.74 | O146: 0 | P146: 0 | Q146: 0 | R146: 0 | S146: 0 | T146: 0 | U146: 0 | V146: 0 | W146: 0
N147: 0.76 | O147: 0 | P147: 0 | Q147: 0 | R147: 0 | S147: 0 | T147: 0 | U147: 0 | V147: 0 | W147: 0
N148: 0.78 | O148: 0 | P148: 0 | Q148: 0 | R148: 0 | S148: 0 | T148: 0 | U148: 0 | V148: 0 | W148: 0
N149: 0.8 | O149: 0 | P149: 0 | Q149: 0 | R149: 0 | S149: 0 | T149: 0 | U149: 0 | V149: 0 | W149: 0
N150: 0.82 | O150: 0 | P150: 0 | Q150: 0 | R150: 0 | S150: 0 | T150: 0 | U150: 0 | V150: 0 | W150: 0
N151: 0.84 | O151: 0 | P151: 0 | Q151: 0 | R151: 0 | S151: 0 | T151: 0 | U151: 0 | V151: 0 | W151: 0
N152: 0.86 | O152: 0 | P152: 0 | Q152: 0 | R152: 0 | S152: 0 | T152: 0 | U152: 0 | V152: 0 | W152: 0
N153: 0.88 | O153: 0 | P153: 0 | Q153: 0 | R153: 0 | S153: 0 | T153: 0 | U153: 0 | V153: 0 | W153: 0
N154: 0.9 | O154: 0 | P154: 0 | Q154: 0 | R154: 0 | S154: 0 | T154: 0 | U154: 0 | V154: 0 | W154: 0
N155: 0.92 | O155: 0 | P155: 0 | Q155: 0 | R155: 0 | S155: 0 | T155: 0 | U155: 0 | V155: 0 | W155: 0
N156: 0.94 | O156: 0 | P156: 0 | Q156: 0 | R156: 0 | S156: 0 | T156: 0 | U156: 0 | V156: 0 | W156: 0
N157: 0.96 | O157: 0 | P157: 0 | Q157: 0 | R157: 0 | S157: 0 | T157: 0 | U157: 0 | V157: 0 | W157: 0
N158: 0.98 | O158: 0 | P158: 0 | Q158: 0 | R158: 0 | S158: 0 | T158: 0 | U158: 0 | V158: 0 | W158: 0
N159: 1 | O159: =IF(N159<=$R$82,N159,$R$82) -> 0 | P159: =$N$82+$O$82*O159+$P$82*O159*O159 -> 0 | Q159: =IF(N159<=$R$83,N159,$R$83) -> 0 | R159: =$N$83+$O$83*Q159+$P$83*Q159*Q159 -> 0 | S159: =IF(N159<=$R$84,N159,$R$84) -> 0 | T159: =$N$84+$O$84*S159+$P$84*S159*S159 -> 0 | U159: =IF(N159<=$R$85,N159,$R$85) -> 0 | V159: =$N$85+$O$85*U159+$P$85*U159*U159 -> 0 | W159: =IF(N159<=$R$86,N159,$R$86) -> 0 | X159: =$N$87+$O$87*W159+$P$86*W159*W159 -> 
N160: 1.02 | O160: 0 | P160: 0 | Q160: 0 | R160: 0 | S160: 0 | T160: 0 | U160: 0 | V160: 0 | W160: 0
N161: 1.04 | O161: 0 | P161: 0 | Q161: 0 | R161: 0 | S161: 0 | T161: 0 | U161: 0 | V161: 0 | W161: 0
N162: 1.06 | O162: 0 | P162: 0 | Q162: 0 | R162: 0 | S162: 0 | T162: 0 | U162: 0 | V162: 0 | W162: 0
N163: 1.08 | O163: 0 | P163: 0 | Q163: 0 | R163: 0 | S163: 0 | T163: 0 | U163: 0 | V163: 0 | W163: 0
N164: 1.1 | O164: 0 | P164: 0 | Q164: 0 | R164: 0 | S164: 0 | T164: 0 | U164: 0 | V164: 0 | W164: 0
N165: 1.12 | O165: 0 | P165: 0 | Q165: 0 | R165: 0 | S165: 0 | T165: 0 | U165: 0 | V165: 0 | W165: 0
N166: 1.14 | O166: 0 | P166: 0 | Q166: 0 | R166: 0 | S166: 0 | T166: 0 | U166: 0 | V166: 0 | W166: 0
N167: 1.16 | O167: 0 | P167: 0 | Q167: 0 | R167: 0 | S167: 0 | T167: 0 | U167: 0 | V167: 0 | W167: 0
N168: 1.18 | O168: 0 | P168: 0 | Q168: 0 | R168: 0 | S168: 0 | T168: 0 | U168: 0 | V168: 0 | W168: 0
N169: 1.2 | O169: 0 | P169: 0 | Q169: 0 | R169: 0 | S169: 0 | T169: 0 | U169: 0 | V169: 0 | W169: 0
N170: 1.22 | O170: 0 | P170: 0 | Q170: 0 | R170: 0 | S170: 0 | T170: 0 | U170: 0 | V170: 0 | W170: 0
N171: 1.24 | O171: 0 | P171: 0 | Q171: 0 | R171: 0 | S171: 0 | T171: 0 | U171: 0 | V171: 0 | W171: 0
N172: 1.26 | O172: 0 | P172: 0 | Q172: 0 | R172: 0 | S172: 0 | T172: 0 | U172: 0 | V172: 0 | W172: 0
N173: 1.28 | O173: 0 | P173: 0 | Q173: 0 | R173: 0 | S173: 0 | T173: 0 | U173: 0 | V173: 0 | W173: 0
N174: 1.3 | O174: 0 | P174: 0 | Q174: 0 | R174: 0 | S174: 0 | T174: 0 | U174: 0 | V174: 0 | W174: 0
N175: 1.32 | O175: 0 | P175: 0 | Q175: 0 | R175: 0 | S175: 0 | T175: 0 | U175: 0 | V175: 0 | W175: 0
N176: 1.34 | O176: 0 | P176: 0 | Q176: 0 | R176: 0 | S176: 0 | T176: 0 | U176: 0 | V176: 0 | W176: 0
N177: 1.36 | O177: 0 | P177: 0 | Q177: 0 | R177: 0 | S177: 0 | T177: 0 | U177: 0 | V177: 0 | W177: 0
N178: 1.38 | O178: 0 | P178: 0 | Q178: 0 | R178: 0 | S178: 0 | T178: 0 | U178: 0 | V178: 0 | W178: 0
N179: 1.4 | O179: 0 | P179: 0 | Q179: 0 | R179: 0 | S179: 0 | T179: 0 | U179: 0 | V179: 0 | W179: 0
N180: 1.42 | O180: 0 | P180: 0 | Q180: 0 | R180: 0 | S180: 0 | T180: 0 | U180: 0 | V180: 0 | W180: 0
N181: 1.44 | O181: 0 | P181: 0 | Q181: 0 | R181: 0 | S181: 0 | T181: 0 | U181: 0 | V181: 0 | W181: 0
N182: 1.46 | O182: 0 | P182: 0 | Q182: 0 | R182: 0 | S182: 0 | T182: 0 | U182: 0 | V182: 0 | W182: 0
N183: 1.48 | O183: 0 | P183: 0 | Q183: 0 | R183: 0 | S183: 0 | T183: 0 | U183: 0 | V183: 0 | W183: 0
N184: 1.5 | O184: 0 | P184: 0 | Q184: 0 | R184: 0 | S184: 0 | T184: 0 | U184: 0 | V184: 0 | W184: 0
N185: 1.52 | O185: 0 | P185: 0 | Q185: 0 | R185: 0 | S185: 0 | T185: 0 | U185: 0 | V185: 0 | W185: 0
N186: 1.54 | O186: 0 | P186: 0 | Q186: 0 | R186: 0 | S186: 0 | T186: 0 | U186: 0 | V186: 0 | W186: 0
N187: 1.56 | O187: 0 | P187: 0 | Q187: 0 | R187: 0 | S187: 0 | T187: 0 | U187: 0 | V187: 0 | W187: 0
N188: 1.58 | O188: 0 | P188: 0 | Q188: 0 | R188: 0 | S188: 0 | T188: 0 | U188: 0 | V188: 0 | W188: 0
N189: 1.6 | O189: 0 | P189: 0 | Q189: 0 | R189: 0 | S189: 0 | T189: 0 | U189: 0 | V189: 0 | W189: 0
N190: 1.62 | O190: 0 | P190: 0 | Q190: 0 | R190: 0 | S190: 0 | T190: 0 | U190: 0 | V190: 0 | W190: 0
N191: 1.64 | O191: 0 | P191: 0 | Q191: 0 | R191: 0 | S191: 0 | T191: 0 | U191: 0 | V191: 0 | W191: 0
N192: 1.66 | O192: 0 | P192: 0 | Q192: 0 | R192: 0 | S192: 0 | T192: 0 | U192: 0 | V192: 0 | W192: 0
N193: 1.68 | O193: 0 | P193: 0 | Q193: 0 | R193: 0 | S193: 0 | T193: 0 | U193: 0 | V193: 0 | W193: 0
N194: 1.7 | O194: 0 | P194: 0 | Q194: 0 | R194: 0 | S194: 0 | T194: 0 | U194: 0 | V194: 0 | W194: 0
N195: 1.72 | O195: 0 | P195: 0 | Q195: 0 | R195: 0 | S195: 0 | T195: 0 | U195: 0 | V195: 0 | W195: 0
N196: 1.74 | O196: 0 | P196: 0 | Q196: 0 | R196: 0 | S196: 0 | T196: 0 | U196: 0 | V196: 0 | W196: 0
N197: 1.76 | O197: 0 | P197: 0 | Q197: 0 | R197: 0 | S197: 0 | T197: 0 | U197: 0 | V197: 0 | W197: 0
N198: 1.78 | O198: 0 | P198: 0 | Q198: 0 | R198: 0 | S198: 0 | T198: 0 | U198: 0 | V198: 0 | W198: 0
N199: 1.8 | O199: 0 | P199: 0 | Q199: 0 | R199: 0 | S199: 0 | T199: 0 | U199: 0 | V199: 0 | W199: 0
N200: 1.82 | O200: 0 | P200: 0 | Q200: 0 | R200: 0 | S200: 0 | T200: 0 | U200: 0 | V200: 0 | W200: 0
N201: 1.84 | O201: 0 | P201: 0 | Q201: 0 | R201: 0 | S201: 0 | T201: 0 | U201: 0 | V201: 0 | W201: 0
N202: 1.86 | O202: 0 | P202: 0 | Q202: 0 | R202: 0 | S202: 0 | T202: 0 | U202: 0 | V202: 0 | W202: 0
N203: 1.88 | O203: 0 | P203: 0 | Q203: 0 | R203: 0 | S203: 0 | T203: 0 | U203: 0 | V203: 0 | W203: 0
N204: 1.9 | O204: 0 | P204: 0 | Q204: 0 | R204: 0 | S204: 0 | T204: 0 | U204: 0 | V204: 0 | W204: 0
N205: 1.92 | O205: 0 | P205: 0 | Q205: 0 | R205: 0 | S205: 0 | T205: 0 | U205: 0 | V205: 0 | W205: 0
N206: 1.94 | O206: 0 | P206: 0 | Q206: 0 | R206: 0 | S206: 0 | T206: 0 | U206: 0 | V206: 0 | W206: 0
N207: 1.96 | O207: 0 | P207: 0 | Q207: 0 | R207: 0 | S207: 0 | T207: 0 | U207: 0 | V207: 0 | W207: 0
N208: 1.98 | O208: 0 | P208: 0 | Q208: 0 | R208: 0 | S208: 0 | T208: 0 | U208: 0 | V208: 0 | W208: 0
N209: 2 | O209: 0 | P209: 0 | Q209: 0 | R209: 0 | S209: 0 | T209: 0 | U209: 0 | V209: 0 | W209: 0
N210: 2.02 | O210: 0 | P210: 0 | Q210: 0 | R210: 0 | S210: 0 | T210: 0 | U210: 0 | V210: 0 | W210: 0
N211: 2.04 | O211: 0 | P211: 0 | Q211: 0 | R211: 0 | S211: 0 | T211: 0 | U211: 0 | V211: 0 | W211: 0
N212: 2.06 | O212: 0 | P212: 0 | Q212: 0 | R212: 0 | S212: 0 | T212: 0 | U212: 0 | V212: 0 | W212: 0
N213: 2.08 | O213: 0 | P213: 0 | Q213: 0 | R213: 0 | S213: 0 | T213: 0 | U213: 0 | V213: 0 | W213: 0
N214: 2.1 | O214: 0 | P214: 0 | Q214: 0 | R214: 0 | S214: 0 | T214: 0 | U214: 0 | V214: 0 | W214: 0
N215: 2.12 | O215: 0 | P215: 0 | Q215: 0 | R215: 0 | S215: 0 | T215: 0 | U215: 0 | V215: 0 | W215: 0
N216: 2.14 | O216: 0 | P216: 0 | Q216: 0 | R216: 0 | S216: 0 | T216: 0 | U216: 0 | V216: 0 | W216: 0
N217: 2.16 | O217: 0 | P217: 0 | Q217: 0 | R217: 0 | S217: 0 | T217: 0 | U217: 0 | V217: 0 | W217: 0
N218: 2.18 | O218: 0 | P218: 0 | Q218: 0 | R218: 0 | S218: 0 | T218: 0 | U218: 0 | V218: 0 | W218: 0
N219: 2.2 | O219: 0 | P219: 0 | Q219: 0 | R219: 0 | S219: 0 | T219: 0 | U219: 0 | V219: 0 | W219: 0
N220: 2.22 | O220: 0 | P220: 0 | Q220: 0 | R220: 0 | S220: 0 | T220: 0 | U220: 0 | V220: 0 | W220: 0
N221: 2.24 | O221: 0 | P221: 0 | Q221: 0 | R221: 0 | S221: 0 | T221: 0 | U221: 0 | V221: 0 | W221: 0
N222: 2.26 | O222: 0 | P222: 0 | Q222: 0 | R222: 0 | S222: 0 | T222: 0 | U222: 0 | V222: 0 | W222: 0
N223: 2.28 | O223: =IF(N223<=$R$82,N223,$R$82) -> 0 | P223: =$N$82+$O$82*O223+$P$82*O223*O223 -> 0 | Q223: =IF(N223<=$R$83,N223,$R$83) -> 0 | R223: =$N$83+$O$83*Q223+$P$83*Q223*Q223 -> 0 | S223: =IF(N223<=$R$84,N223,$R$84) -> 0 | T223: =$N$84+$O$84*S223+$P$84*S223*S223 -> 0 | U223: =IF(N223<=$R$85,N223,$R$85) -> 0 | V223: =$N$85+$O$85*U223+$P$85*U223*U223 -> 0 | W223: =IF(N223<=$R$86,N223,$R$86) -> 0 | X223: =$N$87+$O$87*W223+$P$86*W223*W223 -> 
N224: 2.3 | O224: 0 | P224: 0 | Q224: 0 | R224: 0 | S224: 0 | T224: 0 | U224: 0 | V224: 0 | W224: 0
N225: 2.32 | O225: 0 | P225: 0 | Q225: 0 | R225: 0 | S225: 0 | T225: 0 | U225: 0 | V225: 0 | W225: 0
N226: 2.34 | O226: 0 | P226: 0 | Q226: 0 | R226: 0 | S226: 0 | T226: 0 | U226: 0 | V226: 0 | W226: 0
N227: 2.36 | O227: 0 | P227: 0 | Q227: 0 | R227: 0 | S227: 0 | T227: 0 | U227: 0 | V227: 0 | W227: 0
N228: 2.38 | O228: 0 | P228: 0 | Q228: 0 | R228: 0 | S228: 0 | T228: 0 | U228: 0 | V228: 0 | W228: 0
N229: 2.4 | O229: 0 | P229: 0 | Q229: 0 | R229: 0 | S229: 0 | T229: 0 | U229: 0 | V229: 0 | W229: 0
N230: 2.42 | O230: 0 | P230: 0 | Q230: 0 | R230: 0 | S230: 0 | T230: 0 | U230: 0 | V230: 0 | W230: 0
N231: 2.44 | O231: 0 | P231: 0 | Q231: 0 | R231: 0 | S231: 0 | T231: 0 | U231: 0 | V231: 0 | W231: 0
N232: 2.46 | O232: 0 | P232: 0 | Q232: 0 | R232: 0 | S232: 0 | T232: 0 | U232: 0 | V232: 0 | W232: 0
N233: 2.48 | O233: 0 | P233: 0 | Q233: 0 | R233: 0 | S233: 0 | T233: 0 | U233: 0 | V233: 0 | W233: 0
N234: 2.5 | O234: 0 | P234: 0 | Q234: 0 | R234: 0 | S234: 0 | T234: 0 | U234: 0 | V234: 0 | W234: 0
N235: 2.52 | O235: 0 | P235: 0 | Q235: 0 | R235: 0 | S235: 0 | T235: 0 | U235: 0 | V235: 0 | W235: 0
N236: 2.54 | O236: 0 | P236: 0 | Q236: 0 | R236: 0 | S236: 0 | T236: 0 | U236: 0 | V236: 0 | W236: 0
N237: 2.56 | O237: 0 | P237: 0 | Q237: 0 | R237: 0 | S237: 0 | T237: 0 | U237: 0 | V237: 0 | W237: 0
N238: 2.58 | O238: 0 | P238: 0 | Q238: 0 | R238: 0 | S238: 0 | T238: 0 | U238: 0 | V238: 0 | W238: 0
N239: 2.6 | O239: 0 | P239: 0 | Q239: 0 | R239: 0 | S239: 0 | T239: 0 | U239: 0 | V239: 0 | W239: 0
N240: 2.62 | O240: 0 | P240: 0 | Q240: 0 | R240: 0 | S240: 0 | T240: 0 | U240: 0 | V240: 0 | W240: 0
N241: 2.64 | O241: 0 | P241: 0 | Q241: 0 | R241: 0 | S241: 0 | T241: 0 | U241: 0 | V241: 0 | W241: 0
N242: 2.66 | O242: 0 | P242: 0 | Q242: 0 | R242: 0 | S242: 0 | T242: 0 | U242: 0 | V242: 0 | W242: 0
N243: 2.68 | O243: 0 | P243: 0 | Q243: 0 | R243: 0 | S243: 0 | T243: 0 | U243: 0 | V243: 0 | W243: 0
N244: 2.7 | O244: 0 | P244: 0 | Q244: 0 | R244: 0 | S244: 0 | T244: 0 | U244: 0 | V244: 0 | W244: 0
N245: 2.72 | O245: 0 | P245: 0 | Q245: 0 | R245: 0 | S245: 0 | T245: 0 | U245: 0 | V245: 0 | W245: 0
N246: 2.74 | O246: 0 | P246: 0 | Q246: 0 | R246: 0 | S246: 0 | T246: 0 | U246: 0 | V246: 0 | W246: 0
N247: 2.76 | O247: 0 | P247: 0 | Q247: 0 | R247: 0 | S247: 0 | T247: 0 | U247: 0 | V247: 0 | W247: 0
N248: 2.78 | O248: 0 | P248: 0 | Q248: 0 | R248: 0 | S248: 0 | T248: 0 | U248: 0 | V248: 0 | W248: 0
N249: 2.8 | O249: 0 | P249: 0 | Q249: 0 | R249: 0 | S249: 0 | T249: 0 | U249: 0 | V249: 0 | W249: 0
... 11 more rows

Sheet Statistik SN
F5: Prüfbericht | G5: E4312-01
A6: Plattendruckversuch EV und ME
A7: SN 670 317b: 1998
C9: Auftraggeber:
C10: Auftrag erteilt durch:
C11: Objekt:
C13: ME berechnet für Schichtart:
C14: Soll (ME1) [MN/m²] | D14: 45
C16: Prüfer: | G16: Messdatum: | H16: 2014-08-28
C18: Auftrag vom:
D19: Alle Ergebnisse beziehen sich auf die hier aufgelisteten Messungen.
A21: Zusammenstellung der Prüfergebnisse
A23: Prüfstelle | F23: EV | I23: ME
A24: Nr. | B24: Datum | C24: Profil | D24: Lage | E24: Prüfschicht | F24: Erstbe-lastung EV1 [MN/m²] | G24: Zweitbe-lastung EV2 [MN/m²] | H24: Verhält-nis EV2/EV1 | I24: Erstbe-lastung ME1 [MN/m²] | J24: Anforderung SN640585b:2006 | L24: Zweitbe-lastung ME2 [MN/m²] | M24: Verhält-nis ME2/ME1
F25: Ist | G25: Ist | H25: Ist | I25: Ist | J25: Soll | K25: erfüllt | L25: Ist | M25: Ist
J31: Datum:
J32: Sachbearbeiter:

Sheet Statistik stat
B1: Prüfinstitut:
A3: Statischer Plattendruckversuch, Statistische Auswertung
A4: Bestimmung des Verformungsmoduls gemäß DIN18134-2001 und TP BF-StB, Teil E1: "Prüfung auf statistischer Grundlage - Stichprobenprüfpläne -", Ausgabe 1993, Einfachplan - Variablenprüfung Prüfgerät: Plattendruckgerät AX01 Hersteller: Anix GmbH
B5: Auftraggeber:
B6: Bauvorhaben:
B7: Prüftiefe: | G7: Datum: | H7: 2014-08-28T09:57:20
C8: Schicht: | G8: Kartennummer: | H8: 280814091054
B9: Bemerkungen: | G9: Gerätenummer: | H9: 4000
B10: Wetter/Temperatur: | F10: Plattendurchmesser: | H10: 600
B11: Bearbeiter: | F11: Hebelverhältnis: | H11: 1:2.00
A12: gefordertes Mindestquantil Ev2: | D12: 45
A13: gefordertes Höchstquantil Ev2/Ev1: | D13: 2.2
A14: Resultate:
A16: Nr | B16: Datum | C16: Zeit | D16: s1max [MN/m²] | E16: Ev1 [MN/m²] | F16: Ev2 [MN/m²] | G16: Ev2/Ev1 | H16: Bemerkungen
G17: =IF(E17<>0,F17/E17,"") -> 
G19: =IF(E19<>0,F19/E19,"") -> 
C21: Arithmetisches Mittel der Stichprobe: | F21: =AVERAGE(F17:F20) ->  | G21: =AVERAGE(G17:G20) -> 
D22: Standardabweichung: | F22: =STDEV(F17:F20) ->  | G22: =STDEV(G17:G20) -> 
D23: Variationskoeffizient: | F23: =F22/F21 ->  | G23: =G22/G21 -> 
D25: Qualitätszahl Q: | F25: =(F21-D12)/F22 ->  | G25: =(D13-G21)/G22 -> 
E27: Die Prüfkriterien (Q>0,88) sind | F27: =IF(F25>0.88,"erfüllt.","nicht erfüllt.") ->  | G27: =IF(G25>0.88,"erfüllt.","nicht erfüllt.") -> 
A29: Berlin | B29: =TODAY() -> 2026-06-26
